Workbook

Sheet Portada

Sheet Análisis
O19: Octubre 2025
F21: Tiempos de respuesta de las solicitudes de información recibidas
C22: Tipología de Peticiones recibidas en el mes
C26: En la siguiente tabla se registra la cantidad de peticiones recibidas por la Defensoría del Espacio Público en el mes de estudio. | F26: A partir del tiempo estipulado en la Ley 1755 del 2015 y el reporte emitido por la Secretaría General como insumo para la presentación del presente informe se presenta el tiempo promedio por tipología a continuación
F28: Tipología | P28: Tiempos Ley 1755 de 2015 | Z28: Promedio Tiempos de Respuesta
F29: Consulta | P29: 30 | Z29: 13 días
F30: Derecho de Interés Particular | P30: 15 | Z30: 7 días
F31: Derecho de Interés General | P31: 15 | Q31: 15 | U31: 15 | V31: 15 | Z31: 9 días
F32: Denuncia por Actos de Corrupción | P32: 15 | Q32: 15 | U32: 15 | V32: 15 | Z32: 5 días
F33: Felicitación | P33: 15 | Q33: 15 | U33: 15 | V33: 15 | Z33: 15 días
F34: Queja | P34: 15 | Q34: 15 | U34: 15 | V34: 15 | Z34: 10 días
F35: Reclamo | P35: 15 | Q35: 15 | U35: 15 | V35: 15 | Z35: 8 días
F36: Sugerencia | P36: 15 | Q36: 15 | U36: 15 | V36: 15 | Z36: 0 días
F37: Solicitud Acceso a la Información | P37: 10 | Q37: 10 | U37: 10 | V37: 10 | Z37: 0 días
F38: Solicitud de Copia | P38: 10 | Q38: 10 | U38: 10 | V38: 10 | Z38: 8 días
C40: Número de solicitudes recibidas y registradas | D40: Número de solicitudes trasladadas a otra entidad | F40: Nota: Para las tipologías: Sugerencia y Solicitud Acceso a la Información; no se presentaron durante el mes de octubre del 2025.
C41: 820 | D41: 531 | F41: Con base en el reporte del Sistema de Gestión de Peticiones Ciudadanas Bogotá te escucha y de conformidad con el tiempo promedio de respuesta de las dependencias y/o áreas de la Defensoría del Espacio Público fue de 08 días, sin embargo, es pertinente aclarar que este reporte para el mes de análisis tiene el promedio del total de las peticiones ingresadas:
C43: De acuerdo con las cifras anteriores, tomadas del reporte del sistema Bogotá te escucha, las solicitudes recibidas y registradas por la Defensoría del Espacio Público se clasifican de la siguiente manera por tipo de petición:
C47: Tipo de petición | D47: Cantidad | G47: Dependencia | Q47: CONSULTA | S47: DERECHO DE PETICION DE INTERES GENERAL | U47: DERECHO DE PETICION DE INTERES PARTICULAR | W47: QUEJA | Y47: RECLAMO | AA47: DENUNCIA POR ACTOS DE CORRUPCION | AC47: FELICITACION | AE47: SOLICITUD DE COPIA | AG47: Total general
C48: DERECHO DE PETICION DE INTERES GENERAL | D48: 501 | G48: AREA DE ATENCION A LA CIUDADANIA | Q48: 1 | S48: 1.590909091 | U48: 1 | W48: 1 | Y48: 1 | AE48: 1.2 | AG48: =+AVERAGE(Q48:AF48) -> 1.131818182
C49: DERECHO DE PETICION DE INTERES PARTICULAR | D49: 212 | G49: SUBDIRECCION DE REGISTRO INMOBILIARIO | L49: SUBDIRECCION DE REGISTRO INMOBILIARIO | Q49: 9.2 | U49: 9.5 | AE49: 9.285714286 | AG49: =+AVERAGE(Q49:AF49) -> 9.328571429
C50: QUEJA | D50: 47 | G50: SUBDIRECCION DE GESTION INMOBILIARIA Y DEL ESPACIO PUBLICO | L50: SUBDIRECCION DE GESTION INMOBILIARIA Y DEL ESPACIO PUBLICO | Q50: 27.75 | S50: 14.025 | U50: 13.63636364 | W50: 14 | Y50: 15 | AC50: 15 | AE50: 14.84745763 | AG50: =+AVERAGE(Q50:AF50) -> 16.32268875
C51: CONSULTA | D51: 30 | G51: OFICINA DE CONTROL DISCIPLINARIO INTERNO | L51: OFICINA DE CONTROL DISCIPLINARIO INTERNO | S51: 10 | W51: 16 | AA51: 5 | AE51: 10.33333333 | AG51: 10.33333333
C52: RECLAMO | D52: 18 | G52: OFICINA JURIDICA | L52: OFICINA JURIDICA | U52: 4 | AE52: 4 | AG52: 4
C53: SUGERENCIA | D53: 9 | G53: Promedio días por tipología | Q53: =AVERAGE(Q48:R52) -> 12.65 | S53: =AVERAGE(S48:T52) -> 8.538636364 | U53: =AVERAGE(U48:V52) -> 7.034090909 | W53: =AVERAGE(W48:X52) -> 10.33333333 | Y53: =AVERAGE(Y48:Z52) -> 8 | AA53: =AVERAGE(AA48:AB52) -> 5 | AC53: =AVERAGE(AC48:AD52) -> 15 | AE53: =AVERAGE(AE48:AF52) -> 7.933301049 | AG53: =AVERAGE(AG48:AH52) -> 8.223282339
C54: SOLICITUD DE COPIA | D54: 2
C55: SOLICITUD DE ACCESO A LA INFORMACION | D55: 1
C56: Total general | D56: =SUM(D48:D55) -> 820
A58: =+#REF! ->  | C58: NOTA: La Defensoría del Espacio Público trasladó por competencia, 531 solicitudes. Es de aclarar que este dato es el resultado de la aplicación de los filtros consignados en la Guía para la generación y manejo del “REPORTE GESTIÓN DE PETICIONES”
A59: =+#REF! -> 
A60: =+#REF! -> 
A61: =+#REF! -> 
A63: =+#REF! -> 
A64: =+#REF! -> 
A65: =+#REF! -> 
A68: =+#REF! -> 
A69: =+#REF! -> 
A70: =+#REF! -> 
A72: =+#REF! -> 
A73: =+#REF! -> 
A74: =+#REF! -> 
A75: =+#REF! -> 
A76: =+#REF! -> 
A77: =+#REF! -> 

Sheet Registradas y Recibidas
B9: REPORTE GESTIÓN DE PETICIONES Fecha: 2025- 10- 01 a 2025 - 10 - 31 Estado de Petición: Al Periodo
B19: Número petición Numero de registro en el Sistema | C19: Dependencia: Nombre asociado al usuario que tiene a cargo la petición | D19: Canal: Nombre del canal parametrizado en el sistema por el cual fue registrada la petición | E19: Tipología actualizada: Tipo de documento utilizado por la entidad | F19: Días gestión Días calendario transcurridos desde la fecha de inicio de términos hasta el último día del mes | G19: Estado del Requerimiento "Gestionado" o "Pendiente" de respuesta definitiva por parte de la Defensoría del Espacio Público o de las entidades competentes
B20: 4577592025 | C20: SUBDIRECCION DE GESTION INMOBILIARIA Y DEL ESPACIO PUBLICO | D20: E-MAIL | E20: DERECHO DE PETICION DE INTERES PARTICULAR | F20: 12 | G20: PENDIENTE
B21: 4877752025 | C21: SUBDIRECCION DE GESTION INMOBILIARIA Y DEL ESPACIO PUBLICO | D21: WEB | E21: DERECHO DE PETICION DE INTERES PARTICULAR | F21: 14 | G21: GESTIONADO
B22: 4918142025 | C22: AREA DE ATENCION A LA CIUDADANIA | D22: E-MAIL | E22: DERECHO DE PETICION DE INTERES PARTICULAR | F22: 1 | G22: GESTIONADO
B23: 4931812025 | C23: AREA DE ATENCION A LA CIUDADANIA | D23: WEB | E23: DERECHO DE PETICION DE INTERES GENERAL | F23: 1 | G23: GESTIONADO
B24: 4991022025 | C24: AREA DE ATENCION A LA CIUDADANIA | D24: E-MAIL | E24: DERECHO DE PETICION DE INTERES PARTICULAR | F24: 1 | G24: GESTIONADO
B25: 4994872025 | C25: AREA DE ATENCION A LA CIUDADANIA | D25: TELEFONO | E25: DERECHO DE PETICION DE INTERES GENERAL | F25: 1 | G25: GESTIONADO
B26: 5057352025 | C26: AREA DE ATENCION A LA CIUDADANIA | D26: E-MAIL | E26: DERECHO DE PETICION DE INTERES GENERAL | F26: 1 | G26: GESTIONADO
B27: 5057462025 | C27: AREA DE ATENCION A LA CIUDADANIA | D27: E-MAIL | E27: DERECHO DE PETICION DE INTERES GENERAL | F27: 1 | G27: GESTIONADO
B28: 5061322025 | C28: AREA DE ATENCION A LA CIUDADANIA | D28: WEB | E28: DERECHO DE PETICION DE INTERES PARTICULAR | F28: 1 | G28: GESTIONADO
B29: 5062862025 | C29: AREA DE ATENCION A LA CIUDADANIA | D29: WEB | E29: DERECHO DE PETICION DE INTERES PARTICULAR | F29: 1 | G29: GESTIONADO
B30: 5073212025 | C30: AREA DE ATENCION A LA CIUDADANIA | D30: ESCRITO | E30: DERECHO DE PETICION DE INTERES PARTICULAR | F30: 1 | G30: GESTIONADO
B31: 5087252025 | C31: AREA DE ATENCION A LA CIUDADANIA | D31: ESCRITO | E31: DERECHO DE PETICION DE INTERES GENERAL | F31: 1 | G31: GESTIONADO
B32: 5125242025 | C32: AREA DE ATENCION A LA CIUDADANIA | D32: E-MAIL | E32: DERECHO DE PETICION DE INTERES PARTICULAR | F32: 1 | G32: GESTIONADO
B33: 5128262025 | C33: AREA DE ATENCION A LA CIUDADANIA | D33: E-MAIL | E33: DERECHO DE PETICION DE INTERES PARTICULAR | F33: 1 | G33: GESTIONADO
B34: 5137402025 | C34: AREA DE ATENCION A LA CIUDADANIA | D34: TELEFONO | E34: DERECHO DE PETICION DE INTERES GENERAL | F34: 1 | G34: GESTIONADO
B35: 5141542025 | C35: AREA DE ATENCION A LA CIUDADANIA | D35: WEB | E35: DERECHO DE PETICION DE INTERES GENERAL | F35: 1 | G35: GESTIONADO
B36: 5152762025 | C36: AREA DE ATENCION A LA CIUDADANIA | D36: WEB | E36: DERECHO DE PETICION DE INTERES GENERAL | F36: 1 | G36: GESTIONADO
B37: 5154712025 | C37: AREA DE ATENCION A LA CIUDADANIA | D37: WEB | E37: DERECHO DE PETICION DE INTERES GENERAL | F37: 1 | G37: GESTIONADO
B38: 5167632025 | C38: AREA DE ATENCION A LA CIUDADANIA | D38: WEB | E38: QUEJA | F38: 1 | G38: GESTIONADO
B39: 5168472025 | C39: AREA DE ATENCION A LA CIUDADANIA | D39: E-MAIL | E39: DERECHO DE PETICION DE INTERES PARTICULAR | F39: 1 | G39: GESTIONADO
B40: 5170032025 | C40: AREA DE ATENCION A LA CIUDADANIA | D40: E-MAIL | E40: DERECHO DE PETICION DE INTERES PARTICULAR | F40: 1 | G40: GESTIONADO
B41: 5170292025 | C41: SUBDIRECCION DE GESTION INMOBILIARIA Y DEL ESPACIO PUBLICO | D41: ESCRITO | E41: DERECHO DE PETICION DE INTERES PARTICULAR | F41: 14 | G41: GESTIONADO
B42: 5174572025 | C42: AREA DE ATENCION A LA CIUDADANIA | D42: WEB | E42: RECLAMO | F42: 1 | G42: GESTIONADO
B43: 5176012025 | C43: AREA DE ATENCION A LA CIUDADANIA | D43: E-MAIL | E43: DERECHO DE PETICION DE INTERES PARTICULAR | F43: 1 | G43: GESTIONADO
B44: 5197052025 | C44: AREA DE ATENCION A LA CIUDADANIA | D44: E-MAIL | E44: DERECHO DE PETICION DE INTERES PARTICULAR | F44: 1 | G44: GESTIONADO
B45: 5211712025 | C45: AREA DE ATENCION A LA CIUDADANIA | D45: WEB | E45: QUEJA | F45: 1 | G45: GESTIONADO
B46: 5225672025 | C46: AREA DE ATENCION A LA CIUDADANIA | D46: E-MAIL | E46: DERECHO DE PETICION DE INTERES PARTICULAR | F46: 1 | G46: GESTIONADO
B47: 5234842025 | C47: AREA DE ATENCION A LA CIUDADANIA | D47: E-MAIL | E47: DERECHO DE PETICION DE INTERES PARTICULAR | F47: 1 | G47: GESTIONADO
B48: 5235992025 | C48: AREA DE ATENCION A LA CIUDADANIA | D48: ESCRITO | E48: DERECHO DE PETICION DE INTERES PARTICULAR | F48: 1 | G48: GESTIONADO
B49: 5240042025 | C49: AREA DE ATENCION A LA CIUDADANIA | D49: E-MAIL | E49: SUGERENCIA | F49: 1 | G49: GESTIONADO
B50: 5244152025 | C50: AREA DE ATENCION A LA CIUDADANIA | D50: PRESENCIAL | E50: DERECHO DE PETICION DE INTERES PARTICULAR | F50: 1 | G50: GESTIONADO
B51: 5260952025 | C51: AREA DE ATENCION A LA CIUDADANIA | D51: WEB | E51: DERECHO DE PETICION DE INTERES GENERAL | F51: 1 | G51: GESTIONADO
B52: 5263192025 | C52: AREA DE ATENCION A LA CIUDADANIA | D52: E-MAIL | E52: DERECHO DE PETICION DE INTERES GENERAL | F52: 1 | G52: GESTIONADO
B53: 5263892025 | C53: AREA DE ATENCION A LA CIUDADANIA | D53: REDES SOCIALES | E53: DERECHO DE PETICION DE INTERES GENERAL | F53: 1 | G53: GESTIONADO
B54: 5269112025 | C54: AREA DE ATENCION A LA CIUDADANIA | D54: E-MAIL | E54: DERECHO DE PETICION DE INTERES GENERAL | F54: 1 | G54: GESTIONADO
B55: 5270282025 | C55: AREA DE ATENCION A LA CIUDADANIA | D55: WEB | E55: QUEJA | F55: 1 | G55: GESTIONADO
B56: 5272512025 | C56: SUBDIRECCION DE GESTION INMOBILIARIA Y DEL ESPACIO PUBLICO | D56: TELEFONO | E56: DERECHO DE PETICION DE INTERES GENERAL | F56: 15 | G56: GESTIONADO
B57: 5276522025 | C57: AREA DE ATENCION A LA CIUDADANIA | D57: WEB | E57: DERECHO DE PETICION DE INTERES PARTICULAR | F57: 1 | G57: GESTIONADO
B58: 5276632025 | C58: AREA DE ATENCION A LA CIUDADANIA | D58: WEB | E58: DERECHO DE PETICION DE INTERES PARTICULAR | F58: 1 | G58: GESTIONADO
B59: 5276702025 | C59: AREA DE ATENCION A LA CIUDADANIA | D59: WEB | E59: DERECHO DE PETICION DE INTERES PARTICULAR | F59: 1 | G59: GESTIONADO
B60: 5276752025 | C60: AREA DE ATENCION A LA CIUDADANIA | D60: WEB | E60: DERECHO DE PETICION DE INTERES PARTICULAR | F60: 1 | G60: GESTIONADO
B61: 5282282025 | C61: AREA DE ATENCION A LA CIUDADANIA | D61: WEB | E61: DERECHO DE PETICION DE INTERES GENERAL | F61: 1 | G61: GESTIONADO
B62: 5283102025 | C62: AREA DE ATENCION A LA CIUDADANIA | D62: BUZON | E62: DERECHO DE PETICION DE INTERES PARTICULAR | F62: 1 | G62: GESTIONADO
B63: 5283342025 | C63: AREA DE ATENCION A LA CIUDADANIA | D63: WEB | E63: DERECHO DE PETICION DE INTERES PARTICULAR | F63: 1 | G63: GESTIONADO
B64: 5301332025 | C64: AREA DE ATENCION A LA CIUDADANIA | D64: TELEFONO | E64: RECLAMO | F64: 1 | G64: GESTIONADO
B65: 5303212025 | C65: AREA DE ATENCION A LA CIUDADANIA | D65: WEB | E65: QUEJA | F65: 1 | G65: GESTIONADO
B66: 5304892025 | C66: AREA DE ATENCION A LA CIUDADANIA | D66: WEB | E66: QUEJA | F66: 1 | G66: GESTIONADO
B67: 5304922025 | C67: AREA DE ATENCION A LA CIUDADANIA | D67: E-MAIL | E67: DERECHO DE PETICION DE INTERES PARTICULAR | F67: 1 | G67: GESTIONADO
B68: 5306092025 | C68: AREA DE ATENCION A LA CIUDADANIA | D68: E-MAIL | E68: DERECHO DE PETICION DE INTERES PARTICULAR | F68: 1 | G68: GESTIONADO
B69: 5306932025 | C69: AREA DE ATENCION A LA CIUDADANIA | D69: E-MAIL | E69: DERECHO DE PETICION DE INTERES GENERAL | F69: 1 | G69: GESTIONADO
B70: 5312142025 | C70: AREA DE ATENCION A LA CIUDADANIA | D70: WEB | E70: RECLAMO | F70: 1 | G70: GESTIONADO
B71: 5312652025 | C71: AREA DE ATENCION A LA CIUDADANIA | D71: WEB | E71: QUEJA | F71: 1 | G71: GESTIONADO
B72: 5315822025 | C72: AREA DE ATENCION A LA CIUDADANIA | D72: WEB | E72: DERECHO DE PETICION DE INTERES GENERAL | F72: 1 | G72: GESTIONADO
B73: 5316432025 | C73: AREA DE ATENCION A LA CIUDADANIA | D73: TELEFONO | E73: DERECHO DE PETICION DE INTERES GENERAL | F73: 1 | G73: GESTIONADO
B74: 5324712025 | C74: AREA DE ATENCION A LA CIUDADANIA | D74: WEB | E74: QUEJA | F74: 1 | G74: GESTIONADO
B75: 5324722025 | C75: AREA DE ATENCION A LA CIUDADANIA | D75: WEB | E75: DERECHO DE PETICION DE INTERES GENERAL | F75: 1 | G75: GESTIONADO
B76: 5329352025 | C76: AREA DE ATENCION A LA CIUDADANIA | D76: WEB | E76: RECLAMO | F76: 1 | G76: GESTIONADO
B77: 5330622025 | C77: AREA DE ATENCION A LA CIUDADANIA | D77: WEB | E77: DERECHO DE PETICION DE INTERES GENERAL | F77: 1 | G77: GESTIONADO
B78: 5331572025 | C78: AREA DE ATENCION A LA CIUDADANIA | D78: WEB | E78: DERECHO DE PETICION DE INTERES GENERAL | F78: 1 | G78: GESTIONADO
B79: 5336592025 | C79: AREA DE ATENCION A LA CIUDADANIA | D79: E-MAIL | E79: DERECHO DE PETICION DE INTERES PARTICULAR | F79: 1 | G79: GESTIONADO
B80: 5339882025 | C80: AREA DE ATENCION A LA CIUDADANIA | D80: WEB | E80: DERECHO DE PETICION DE INTERES PARTICULAR | F80: 1 | G80: GESTIONADO
B81: 5339952025 | C81: AREA DE ATENCION A LA CIUDADANIA | D81: WEB | E81: DERECHO DE PETICION DE INTERES PARTICULAR | F81: 1 | G81: GESTIONADO
B82: 5340522025 | C82: AREA DE ATENCION A LA CIUDADANIA | D82: WEB | E82: DERECHO DE PETICION DE INTERES PARTICULAR | F82: 1 | G82: GESTIONADO
B83: 5340592025 | C83: AREA DE ATENCION A LA CIUDADANIA | D83: WEB | E83: DERECHO DE PETICION DE INTERES PARTICULAR | F83: 1 | G83: GESTIONADO
B84: 5343452025 | C84: AREA DE ATENCION A LA CIUDADANIA | D84: E-MAIL | E84: CONSULTA | F84: 1 | G84: GESTIONADO
B85: 5343582025 | C85: AREA DE ATENCION A LA CIUDADANIA | D85: E-MAIL | E85: DERECHO DE PETICION DE INTERES GENERAL | F85: 1 | G85: GESTIONADO
B86: 5344142025 | C86: AREA DE ATENCION A LA CIUDADANIA | D86: ESCRITO | E86: DERECHO DE PETICION DE INTERES PARTICULAR | F86: 1 | G86: GESTIONADO
B87: 5344392025 | C87: AREA DE ATENCION A LA CIUDADANIA | D87: E-MAIL | E87: QUEJA | F87: 1 | G87: GESTIONADO
B88: 5344932025 | C88: AREA DE ATENCION A LA CIUDADANIA | D88: WEB | E88: QUEJA | F88: 1 | G88: GESTIONADO
B89: 5351092025 | C89: AREA DE ATENCION A LA CIUDADANIA | D89: TELEFONO | E89: DERECHO DE PETICION DE INTERES PARTICULAR | F89: 1 | G89: GESTIONADO
B90: 5351782025 | C90: AREA DE ATENCION A LA CIUDADANIA | D90: E-MAIL | E90: QUEJA | F90: 1 | G90: GESTIONADO
B91: 5354602025 | C91: AREA DE ATENCION A LA CIUDADANIA | D91: WEB | E91: QUEJA | F91: 1 | G91: GESTIONADO
B92: 5354752025 | C92: SUBDIRECCION DE GESTION INMOBILIARIA Y DEL ESPACIO PUBLICO | D92: E-MAIL | E92: DERECHO DE PETICION DE INTERES PARTICULAR | F92: 14 | G92: GESTIONADO
B93: 5357472025 | C93: AREA DE ATENCION A LA CIUDADANIA | D93: WEB | E93: DERECHO DE PETICION DE INTERES GENERAL | F93: 1 | G93: GESTIONADO
B94: 5365162025 | C94: AREA DE ATENCION A LA CIUDADANIA | D94: TELEFONO | E94: DERECHO DE PETICION DE INTERES PARTICULAR | F94: 1 | G94: GESTIONADO
B95: 5367832025 | C95: AREA DE ATENCION A LA CIUDADANIA | D95: E-MAIL | E95: DERECHO DE PETICION DE INTERES PARTICULAR | F95: 1 | G95: GESTIONADO
B96: 5369962025 | C96: AREA DE ATENCION A LA CIUDADANIA | D96: E-MAIL | E96: DERECHO DE PETICION DE INTERES GENERAL | F96: 1 | G96: GESTIONADO
B97: 5372612025 | C97: AREA DE ATENCION A LA CIUDADANIA | D97: WEB | E97: DERECHO DE PETICION DE INTERES GENERAL | F97: 1 | G97: GESTIONADO
B98: 5373262025 | C98: AREA DE ATENCION A LA CIUDADANIA | D98: E-MAIL | E98: DERECHO DE PETICION DE INTERES GENERAL | F98: 1 | G98: GESTIONADO
B99: 5377532025 | C99: AREA DE ATENCION A LA CIUDADANIA | D99: WEB | E99: DERECHO DE PETICION DE INTERES GENERAL | F99: 1 | G99: GESTIONADO
B100: 5377652025 | C100: AREA DE ATENCION A LA CIUDADANIA | D100: WEB | E100: QUEJA | F100: 1 | G100: GESTIONADO
B101: 5377662025 | C101: AREA DE ATENCION A LA CIUDADANIA | D101: WEB | E101: QUEJA | F101: 1 | G101: GESTIONADO
B102: 5377682025 | C102: AREA DE ATENCION A LA CIUDADANIA | D102: WEB | E102: QUEJA | F102: 1 | G102: GESTIONADO
B103: 5381342025 | C103: AREA DE ATENCION A LA CIUDADANIA | D103: E-MAIL | E103: DERECHO DE PETICION DE INTERES PARTICULAR | F103: 1 | G103: GESTIONADO
B104: 5382222025 | C104: AREA DE ATENCION A LA CIUDADANIA | D104: E-MAIL | E104: DERECHO DE PETICION DE INTERES PARTICULAR | F104: 1 | G104: GESTIONADO
B105: 5383102025 | C105: AREA DE ATENCION A LA CIUDADANIA | D105: E-MAIL | E105: DERECHO DE PETICION DE INTERES GENERAL | F105: 1 | G105: GESTIONADO
B106: 5384432025 | C106: OFICINA DE CONTROL DISCIPLINARIO INTERNO | D106: WEB | E106: DERECHO DE PETICION DE INTERES GENERAL | F106: 1 | G106: GESTIONADO
B107: 5385072025 | C107: AREA DE ATENCION A LA CIUDADANIA | D107: WEB | E107: DERECHO DE PETICION DE INTERES PARTICULAR | F107: 1 | G107: GESTIONADO
B108: 5401052025 | C108: AREA DE ATENCION A LA CIUDADANIA | D108: BUZON | E108: DERECHO DE PETICION DE INTERES GENERAL | F108: 1 | G108: GESTIONADO
B109: 5401802025 | C109: AREA DE ATENCION A LA CIUDADANIA | D109: TELEFONO | E109: DERECHO DE PETICION DE INTERES GENERAL | F109: 1 | G109: GESTIONADO
B110: 5403022025 | C110: AREA DE ATENCION A LA CIUDADANIA | D110: WEB | E110: RECLAMO | F110: 1 | G110: GESTIONADO
B111: 5404282025 | C111: AREA DE ATENCION A LA CIUDADANIA | D111: ESCRITO | E111: DERECHO DE PETICION DE INTERES PARTICULAR | F111: 1 | G111: GESTIONADO
B112: 5405692025 | C112: AREA DE ATENCION A LA CIUDADANIA | D112: E-MAIL | E112: QUEJA | F112: 1 | G112: GESTIONADO
B113: 5407102025 | C113: AREA DE ATENCION A LA CIUDADANIA | D113: E-MAIL | E113: QUEJA | F113: 1 | G113: GESTIONADO
B114: 5407672025 | C114: AREA DE ATENCION A LA CIUDADANIA | D114: E-MAIL | E114: QUEJA | F114: 1 | G114: GESTIONADO
B115: 5408302025 | C115: AREA DE ATENCION A LA CIUDADANIA | D115: WEB | E115: QUEJA | F115: 1 | G115: GESTIONADO
B116: 5414682025 | C116: AREA DE ATENCION A LA CIUDADANIA | D116: E-MAIL | E116: DERECHO DE PETICION DE INTERES GENERAL | F116: 1 | G116: GESTIONADO
B117: 5418452025 | C117: AREA DE ATENCION A LA CIUDADANIA | D117: PRESENCIAL | E117: DERECHO DE PETICION DE INTERES PARTICULAR | F117: 1 | G117: GESTIONADO
B118: 5418952025 | C118: AREA DE ATENCION A LA CIUDADANIA | D118: WEB | E118: RECLAMO | F118: 1 | G118: GESTIONADO
B119: 5419892025 | C119: AREA DE ATENCION A LA CIUDADANIA | D119: E-MAIL | E119: DERECHO DE PETICION DE INTERES PARTICULAR | F119: 1 | G119: GESTIONADO
B120: 5420182025 | C120: AREA DE ATENCION A LA CIUDADANIA | D120: WEB | E120: QUEJA | F120: 1 | G120: GESTIONADO
B121: 5423432025 | C121: AREA DE ATENCION A LA CIUDADANIA | D121: WEB | E121: QUEJA | F121: 1 | G121: GESTIONADO
B122: 5436512025 | C122: AREA DE ATENCION A LA CIUDADANIA | D122: E-MAIL | E122: DERECHO DE PETICION DE INTERES PARTICULAR | F122: 1 | G122: GESTIONADO
B123: 5438132025 | C123: AREA DE ATENCION A LA CIUDADANIA | D123: WEB | E123: DERECHO DE PETICION DE INTERES GENERAL | F123: 1 | G123: GESTIONADO
B124: 5438382025 | C124: AREA DE ATENCION A LA CIUDADANIA | D124: WEB | E124: DERECHO DE PETICION DE INTERES GENERAL | F124: 1 | G124: GESTIONADO
B125: 5441622025 | C125: AREA DE ATENCION A LA CIUDADANIA | D125: E-MAIL | E125: DERECHO DE PETICION DE INTERES PARTICULAR | F125: 1 | G125: GESTIONADO
B126: 5442252025 | C126: AREA DE ATENCION A LA CIUDADANIA | D126: E-MAIL | E126: DERECHO DE PETICION DE INTERES PARTICULAR | F126: 1 | G126: GESTIONADO
B127: 5442262025 | C127: AREA DE ATENCION A LA CIUDADANIA | D127: E-MAIL | E127: DERECHO DE PETICION DE INTERES PARTICULAR | F127: 1 | G127: GESTIONADO
B128: 5443262025 | C128: AREA DE ATENCION A LA CIUDADANIA | D128: E-MAIL | E128: DERECHO DE PETICION DE INTERES PARTICULAR | F128: 1 | G128: GESTIONADO
B129: 5447962025 | C129: AREA DE ATENCION A LA CIUDADANIA | D129: WEB | E129: DERECHO DE PETICION DE INTERES PARTICULAR | F129: 1 | G129: GESTIONADO
B130: 5448352025 | C130: AREA DE ATENCION A LA CIUDADANIA | D130: E-MAIL | E130: DERECHO DE PETICION DE INTERES PARTICULAR | F130: 1 | G130: GESTIONADO
B131: 5448552025 | C131: AREA DE ATENCION A LA CIUDADANIA | D131: E-MAIL | E131: DERECHO DE PETICION DE INTERES PARTICULAR | F131: 1 | G131: GESTIONADO
B132: 5450442025 | C132: SUBDIRECCION DE REGISTRO INMOBILIARIO | D132: E-MAIL | E132: DERECHO DE PETICION DE INTERES PARTICULAR | F132: 6 | G132: GESTIONADO
B133: 5450732025 | C133: AREA DE ATENCION A LA CIUDADANIA | D133: WEB | E133: QUEJA | F133: 1 | G133: GESTIONADO
B134: 5453592025 | C134: AREA DE ATENCION A LA CIUDADANIA | D134: WEB | E134: DERECHO DE PETICION DE INTERES GENERAL | F134: 1 | G134: GESTIONADO
B135: 5453632025 | C135: OFICINA DE CONTROL DISCIPLINARIO INTERNO | D135: WEB | E135: DERECHO DE PETICION DE INTERES GENERAL | F135: 2 | G135: GESTIONADO
B136: 5455172025 | C136: AREA DE ATENCION A LA CIUDADANIA | D136: WEB | E136: DERECHO DE PETICION DE INTERES PARTICULAR | F136: 1 | G136: GESTIONADO
B137: 5456902025 | C137: AREA DE ATENCION A LA CIUDADANIA | D137: E-MAIL | E137: DERECHO DE PETICION DE INTERES PARTICULAR | F137: 1 | G137: GESTIONADO
B138: 5457462025 | C138: AREA DE ATENCION A LA CIUDADANIA | D138: E-MAIL | E138: DERECHO DE PETICION DE INTERES PARTICULAR | F138: 1 | G138: GESTIONADO
B139: 5464742025 | C139: AREA DE ATENCION A LA CIUDADANIA | D139: WEB | E139: DERECHO DE PETICION DE INTERES PARTICULAR | F139: 1 | G139: GESTIONADO
B140: 5465462025 | C140: AREA DE ATENCION A LA CIUDADANIA | D140: WEB | E140: DERECHO DE PETICION DE INTERES GENERAL | F140: 1 | G140: GESTIONADO
B141: 5465542025 | C141: AREA DE ATENCION A LA CIUDADANIA | D141: E-MAIL | E141: DERECHO DE PETICION DE INTERES PARTICULAR | F141: 1 | G141: GESTIONADO
B142: 5466602025 | C142: AREA DE ATENCION A LA CIUDADANIA | D142: E-MAIL | E142: DERECHO DE PETICION DE INTERES GENERAL | F142: 1 | G142: GESTIONADO
B143: 5468532025 | C143: AREA DE ATENCION A LA CIUDADANIA | D143: BUZON | E143: DERECHO DE PETICION DE INTERES GENERAL | F143: 1 | G143: GESTIONADO
B144: 5469172025 | C144: AREA DE ATENCION A LA CIUDADANIA | D144: E-MAIL | E144: DERECHO DE PETICION DE INTERES GENERAL | F144: 1 | G144: GESTIONADO
B145: 5470102025 | C145: AREA DE ATENCION A LA CIUDADANIA | D145: BUZON | E145: DERECHO DE PETICION DE INTERES GENERAL | F145: 1 | G145: GESTIONADO
B146: 5475962025 | C146: AREA DE ATENCION A LA CIUDADANIA | D146: E-MAIL | E146: DERECHO DE PETICION DE INTERES GENERAL | F146: 1 | G146: GESTIONADO
B147: 5479402025 | C147: AREA DE ATENCION A LA CIUDADANIA | D147: WEB | E147: QUEJA | F147: 1 | G147: GESTIONADO
B148: 5479662025 | C148: AREA DE ATENCION A LA CIUDADANIA | D148: REDES SOCIALES | E148: DERECHO DE PETICION DE INTERES GENERAL | F148: 1 | G148: GESTIONADO
B149: 5479692025 | C149: AREA DE ATENCION A LA CIUDADANIA | D149: E-MAIL | E149: DERECHO DE PETICION DE INTERES PARTICULAR | F149: 1 | G149: GESTIONADO
B150: 5481102025 | C150: AREA DE ATENCION A LA CIUDADANIA | D150: WEB | E150: QUEJA | F150: 1 | G150: GESTIONADO
B151: 5481632025 | C151: AREA DE ATENCION A LA CIUDADANIA | D151: E-MAIL | E151: DERECHO DE PETICION DE INTERES PARTICULAR | F151: 1 | G151: GESTIONADO
B152: 5482632025 | C152: AREA DE ATENCION A LA CIUDADANIA | D152: E-MAIL | E152: DERECHO DE PETICION DE INTERES GENERAL | F152: 1 | G152: GESTIONADO
B153: 5493512025 | C153: AREA DE ATENCION A LA CIUDADANIA | D153: WEB | E153: DERECHO DE PETICION DE INTERES GENERAL | F153: 1 | G153: GESTIONADO
B154: 5493682025 | C154: AREA DE ATENCION A LA CIUDADANIA | D154: WEB | E154: DERECHO DE PETICION DE INTERES PARTICULAR | F154: 1 | G154: GESTIONADO
B155: 5493692025 | C155: AREA DE ATENCION A LA CIUDADANIA | D155: WEB | E155: DERECHO DE PETICION DE INTERES PARTICULAR | F155: 1 | G155: GESTIONADO
B156: 5496122025 | C156: AREA DE ATENCION A LA CIUDADANIA | D156: WEB | E156: QUEJA | F156: 1 | G156: GESTIONADO
B157: 5496132025 | C157: AREA DE ATENCION A LA CIUDADANIA | D157: WEB | E157: RECLAMO | F157: 1 | G157: GESTIONADO
B158: 5496402025 | C158: AREA DE ATENCION A LA CIUDADANIA | D158: WEB | E158: QUEJA | F158: 1 | G158: GESTIONADO
B159: 5496962025 | C159: AREA DE ATENCION A LA CIUDADANIA | D159: E-MAIL | E159: DERECHO DE PETICION DE INTERES PARTICULAR | F159: 1 | G159: GESTIONADO
B160: 5497422025 | C160: AREA DE ATENCION A LA CIUDADANIA | D160: WEB | E160: DERECHO DE PETICION DE INTERES PARTICULAR | F160: 1 | G160: GESTIONADO
B161: 5497822025 | C161: AREA DE ATENCION A LA CIUDADANIA | D161: WEB | E161: QUEJA | F161: 1 | G161: GESTIONADO
B162: 5498642025 | C162: AREA DE ATENCION A LA CIUDADANIA | D162: WEB | E162: DERECHO DE PETICION DE INTERES PARTICULAR | F162: 1 | G162: PENDIENTE
B163: 5498652025 | C163: AREA DE ATENCION A LA CIUDADANIA | D163: WEB | E163: DERECHO DE PETICION DE INTERES PARTICULAR | F163: 1 | G163: GESTIONADO
B164: 5498682025 | C164: AREA DE ATENCION A LA CIUDADANIA | D164: WEB | E164: DERECHO DE PETICION DE INTERES PARTICULAR | F164: 1 | G164: GESTIONADO
B165: 5499332025 | C165: AREA DE ATENCION A LA CIUDADANIA | D165: WEB | E165: DERECHO DE PETICION DE INTERES GENERAL | F165: 1 | G165: GESTIONADO
B166: 5501502025 | C166: AREA DE ATENCION A LA CIUDADANIA | D166: E-MAIL | E166: DERECHO DE PETICION DE INTERES GENERAL | F166: 1 | G166: GESTIONADO
B167: 5501532025 | C167: AREA DE ATENCION A LA CIUDADANIA | D167: E-MAIL | E167: DERECHO DE PETICION DE INTERES GENERAL | F167: 1 | G167: GESTIONADO
B168: 5505512025 | C168: AREA DE ATENCION A LA CIUDADANIA | D168: WEB | E168: RECLAMO | F168: 1 | G168: GESTIONADO
B169: 5505752025 | C169: AREA DE ATENCION A LA CIUDADANIA | D169: E-MAIL | E169: DERECHO DE PETICION DE INTERES PARTICULAR | F169: 1 | G169: GESTIONADO
B170: 5510242025 | C170: AREA DE ATENCION A LA CIUDADANIA | D170: E-MAIL | E170: DERECHO DE PETICION DE INTERES PARTICULAR | F170: 1 | G170: GESTIONADO
B171: 5511192025 | C171: AREA DE ATENCION A LA CIUDADANIA | D171: WEB | E171: DERECHO DE PETICION DE INTERES PARTICULAR | F171: 1 | G171: GESTIONADO
B172: 5515302025 | C172: AREA DE ATENCION A LA CIUDADANIA | D172: WEB | E172: DERECHO DE PETICION DE INTERES PARTICULAR | F172: 1 | G172: GESTIONADO
B173: 5518182025 | C173: AREA DE ATENCION A LA CIUDADANIA | D173: E-MAIL | E173: DERECHO DE PETICION DE INTERES PARTICULAR | F173: 1 | G173: GESTIONADO
B174: 5520692025 | C174: AREA DE ATENCION A LA CIUDADANIA | D174: E-MAIL | E174: QUEJA | F174: 1 | G174: GESTIONADO
B175: 5521572025 | C175: SUBDIRECCION DE GESTION INMOBILIARIA Y DEL ESPACIO PUBLICO | D175: WEB | E175: DERECHO DE PETICION DE INTERES GENERAL | F175: 11 | G175: PENDIENTE
B176: 5521722025 | C176: AREA DE ATENCION A LA CIUDADANIA | D176: WEB | E176: DERECHO DE PETICION DE INTERES PARTICULAR | F176: 1 | G176: GESTIONADO
B177: 5525022025 | C177: AREA DE ATENCION A LA CIUDADANIA | D177: E-MAIL | E177: DERECHO DE PETICION DE INTERES GENERAL | F177: 1 | G177: GESTIONADO
B178: 5544312025 | C178: AREA DE ATENCION A LA CIUDADANIA | D178: E-MAIL | E178: DERECHO DE PETICION DE INTERES PARTICULAR | F178: 1 | G178: GESTIONADO
B179: 5546172025 | C179: AREA DE ATENCION A LA CIUDADANIA | D179: WEB | E179: DERECHO DE PETICION DE INTERES GENERAL | F179: 1 | G179: GESTIONADO
B180: 5546942025 | C180: AREA DE ATENCION A LA CIUDADANIA | D180: WEB | E180: DERECHO DE PETICION DE INTERES GENERAL | F180: 1 | G180: GESTIONADO
B181: 5551142025 | C181: AREA DE ATENCION A LA CIUDADANIA | D181: E-MAIL | E181: DERECHO DE PETICION DE INTERES PARTICULAR | F181: 1 | G181: GESTIONADO
B182: 5553742025 | C182: AREA DE ATENCION A LA CIUDADANIA | D182: E-MAIL | E182: DERECHO DE PETICION DE INTERES GENERAL | F182: 1 | G182: GESTIONADO
B183: 5553782025 | C183: AREA DE ATENCION A LA CIUDADANIA | D183: WEB | E183: DERECHO DE PETICION DE INTERES GENERAL | F183: 1 | G183: GESTIONADO
B184: 5554662025 | C184: AREA DE ATENCION A LA CIUDADANIA | D184: WEB | E184: DERECHO DE PETICION DE INTERES GENERAL | F184: 1 | G184: GESTIONADO
B185: 5555372025 | C185: AREA DE ATENCION A LA CIUDADANIA | D185: WEB | E185: DERECHO DE PETICION DE INTERES GENERAL | F185: 1 | G185: GESTIONADO
B186: 5558202025 | C186: AREA DE ATENCION A LA CIUDADANIA | D186: TELEFONO | E186: RECLAMO | F186: 1 | G186: GESTIONADO
B187: 5565822025 | C187: AREA DE ATENCION A LA CIUDADANIA | D187: WEB | E187: DERECHO DE PETICION DE INTERES GENERAL | F187: 1 | G187: GESTIONADO
B188: 5566072025 | C188: AREA DE ATENCION A LA CIUDADANIA | D188: WEB | E188: DERECHO DE PETICION DE INTERES PARTICULAR | F188: 1 | G188: GESTIONADO
B189: 5583752025 | C189: AREA DE ATENCION A LA CIUDADANIA | D189: E-MAIL | E189: DERECHO DE PETICION DE INTERES PARTICULAR | F189: 1 | G189: GESTIONADO
B190: 5590342025 | C190: AREA DE ATENCION A LA CIUDADANIA | D190: E-MAIL | E190: DERECHO DE PETICION DE INTERES PARTICULAR | F190: 1 | G190: GESTIONADO
B191: 5597052025 | C191: AREA DE ATENCION A LA CIUDADANIA | D191: REDES SOCIALES | E191: DERECHO DE PETICION DE INTERES PARTICULAR | F191: 1 | G191: GESTIONADO
B192: 5601192025 | C192: SUBDIRECCION DE GESTION INMOBILIARIA Y DEL ESPACIO PUBLICO | D192: E-MAIL | E192: DERECHO DE PETICION DE INTERES GENERAL | F192: 3 | G192: PENDIENTE
B193: 5619352025 | C193: AREA DE ATENCION A LA CIUDADANIA | D193: ESCRITO | E193: DERECHO DE PETICION DE INTERES GENERAL | F193: 1 | G193: GESTIONADO
B194: 5620782025 | C194: SUBDIRECCION DE GESTION INMOBILIARIA Y DEL ESPACIO PUBLICO | D194: WEB | E194: DERECHO DE PETICION DE INTERES GENERAL | F194: 10 | G194: PENDIENTE
B195: 5624812025 | C195: AREA DE ATENCION A LA CIUDADANIA | D195: WEB | E195: QUEJA | F195: 1 | G195: GESTIONADO
B196: 5625812025 | C196: AREA DE ATENCION A LA CIUDADANIA | D196: E-MAIL | E196: DERECHO DE PETICION DE INTERES PARTICULAR | F196: 1 | G196: GESTIONADO
B197: 5629202025 | C197: AREA DE ATENCION A LA CIUDADANIA | D197: E-MAIL | E197: DERECHO DE PETICION DE INTERES GENERAL | F197: 1 | G197: GESTIONADO
B198: 5630642025 | C198: OFICINA JURIDICA | D198: E-MAIL | E198: DERECHO DE PETICION DE INTERES PARTICULAR | F198: 4 | G198: GESTIONADO
B199: 5630782025 | C199: AREA DE ATENCION A LA CIUDADANIA | D199: WEB | E199: CONSULTA | F199: 1 | G199: GESTIONADO
B200: 5630872025 | C200: AREA DE ATENCION A LA CIUDADANIA | D200: WEB | E200: DERECHO DE PETICION DE INTERES PARTICULAR | F200: 1 | G200: GESTIONADO
B201: 5634322025 | C201: SUBDIRECCION DE GESTION INMOBILIARIA Y DEL ESPACIO PUBLICO | D201: ESCRITO | E201: DERECHO DE PETICION DE INTERES PARTICULAR | F201: 10 | G201: PENDIENTE
B202: 5636482025 | C202: SUBDIRECCION DE GESTION INMOBILIARIA Y DEL ESPACIO PUBLICO | D202: E-MAIL | E202: DERECHO DE PETICION DE INTERES PARTICULAR | F202: 10 | G202: PENDIENTE
B203: 5636552025 | C203: AREA DE ATENCION A LA CIUDADANIA | D203: WEB | E203: DERECHO DE PETICION DE INTERES PARTICULAR | F203: 1 | G203: GESTIONADO
B204: 5637192025 | C204: AREA DE ATENCION A LA CIUDADANIA | D204: ESCRITO | E204: DERECHO DE PETICION DE INTERES GENERAL | F204: 1 | G204: GESTIONADO
B205: 5637592025 | C205: AREA DE ATENCION A LA CIUDADANIA | D205: WEB | E205: DERECHO DE PETICION DE INTERES GENERAL | F205: 1 | G205: GESTIONADO
B206: 5648952025 | C206: AREA DE ATENCION A LA CIUDADANIA | D206: TELEFONO | E206: DERECHO DE PETICION DE INTERES PARTICULAR | F206: 1 | G206: GESTIONADO
B207: 5649042025 | C207: AREA DE ATENCION A LA CIUDADANIA | D207: TELEFONO | E207: DERECHO DE PETICION DE INTERES GENERAL | F207: 1 | G207: GESTIONADO
B208: 5654812025 | C208: AREA DE ATENCION A LA CIUDADANIA | D208: TELEFONO | E208: DERECHO DE PETICION DE INTERES PARTICULAR | F208: 1 | G208: GESTIONADO
B209: 5657202025 | C209: AREA DE ATENCION A LA CIUDADANIA | D209: E-MAIL | E209: DERECHO DE PETICION DE INTERES GENERAL | F209: 1 | G209: GESTIONADO
B210: 5658282025 | C210: AREA DE ATENCION A LA CIUDADANIA | D210: TELEFONO | E210: DERECHO DE PETICION DE INTERES PARTICULAR | F210: 1 | G210: GESTIONADO
B211: 5659562025 | C211: AREA DE ATENCION A LA CIUDADANIA | D211: TELEFONO | E211: DERECHO DE PETICION DE INTERES GENERAL | F211: 1 | G211: GESTIONADO
B212: 5660602025 | C212: AREA DE ATENCION A LA CIUDADANIA | D212: ESCRITO | E212: DERECHO DE PETICION DE INTERES GENERAL | F212: 1 | G212: GESTIONADO
B213: 5660822025 | C213: SUBDIRECCION DE GESTION INMOBILIARIA Y DEL ESPACIO PUBLICO | D213: E-MAIL | E213: CONSULTA | F213: 9 | G213: PENDIENTE
B214: 5665762025 | C214: OFICINA JURIDICA | D214: E-MAIL | E214: CONSULTA | F214: 8 | G214: PENDIENTE
B215: 5667842025 | C215: AREA DE ATENCION A LA CIUDADANIA | D215: E-MAIL | E215: DERECHO DE PETICION DE INTERES PARTICULAR | F215: 1 | G215: GESTIONADO
B216: 5669712025 | C216: OFICINA JURIDICA | D216: ESCRITO | E216: CONSULTA | F216: 8 | G216: PENDIENTE
B217: 5671532025 | C217: AREA DE ATENCION A LA CIUDADANIA | D217: WEB | E217: DERECHO DE PETICION DE INTERES PARTICULAR | F217: 1 | G217: GESTIONADO
... 622 more rows

Sheet Traslados
B11: REPORTE GESTIÓN DE PETICIONES Fecha: 2025- 10- 01 a 2025 - 10 - 31 Estado de Petición: Al Periodo
B19: Número petición Numero de registro en el Sistema | C19: Dependencia: Nombre asociado al usuario que tiene a cargo la petición | D19: Canal: Nombre del canal parametrizado en el sistema por el cual fue registrada la petición | E19: Tipología actualizada: Tipo de documento utilizado por la entidad | F19: Traslado a otras Entidades: Peticiones que por competencia son trasladadas a otras entidades. | G19: Entidad Destino | H19: Estado del Requerimiento "Gestionado" o "Pendiente" de respuesta definitiva por parte de la Defensoría del Espacio Público o de las entidades competentes
B20: 4577592025 | C20: AREA DE ATENCION A LA CIUDADANIA | D20: E-MAIL | E20: DERECHO DE PETICION DE INTERES PARTICULAR | F20: Solucionado por asignar - Trasladar | G20: SECRETARIA DISTRITAL DE GOBIERNO | H20: PENDIENTE
B21: 4877752025 | C21: AREA DE ATENCION A LA CIUDADANIA | D21: WEB | E21: DERECHO DE PETICION DE INTERES PARTICULAR | F21: Solucionado por asignar - Trasladar | G21: SECRETARIA DISTRITAL DE GOBIERNO | H21: GESTIONADO
B22: 4918142025 | C22: AREA DE ATENCION A LA CIUDADANIA | D22: E-MAIL | E22: DERECHO DE PETICION DE INTERES PARTICULAR | F22: Solucionado - Por traslado | G22: SECRETARIA DISTRITAL DE INTEGRACION SOCIAL | H22: GESTIONADO
B23: 5073212025 | C23: AREA DE ATENCION A LA CIUDADANIA | D23: ESCRITO | E23: DERECHO DE PETICION DE INTERES PARTICULAR | F23: Solucionado - Por traslado | G23: EMPRESA DE TRANSPORTE DEL TERCER MILENIO TRANSMILENIO S.A. | H23: GESTIONADO
B24: 5087252025 | C24: AREA DE ATENCION A LA CIUDADANIA | D24: ESCRITO | E24: DERECHO DE PETICION DE INTERES GENERAL | F24: Solucionado - Por traslado | G24: INSTITUTO PARA LA ECONOMIA SOCIAL - IPES | H24: GESTIONADO
B25: 5125242025 | C25: AREA DE ATENCION A LA CIUDADANIA | D25: E-MAIL | E25: DERECHO DE PETICION DE INTERES PARTICULAR | F25: Solucionado - Por traslado | G25: SECRETARIA DISTRITAL DEL HABITAT | H25: GESTIONADO
B26: 5177372025 | C26: AREA DE ATENCION A LA CIUDADANIA | D26: E-MAIL | E26: DERECHO DE PETICION DE INTERES GENERAL | F26: Solucionado - Por traslado | G26: UNIDAD ADMINISTRATIVA ESPECIAL CUERPO OFICIAL BOMBEROS BOGOTA - UAECOB | H26: GESTIONADO
B27: 5202632025 | C27: AREA DE ATENCION A LA CIUDADANIA | D27: E-MAIL | E27: DERECHO DE PETICION DE INTERES GENERAL | F27: Solucionado - Por traslado | G27: SECRETARIA DISTRITAL DE GOBIERNO | H27: GESTIONADO
B28: 5203762025 | C28: AREA DE ATENCION A LA CIUDADANIA | D28: WEB | E28: DERECHO DE PETICION DE INTERES GENERAL | F28: Solucionado - Por traslado | G28: SECRETARIA DISTRITAL DE GOBIERNO | H28: GESTIONADO
B29: 5203842025 | C29: AREA DE ATENCION A LA CIUDADANIA | D29: WEB | E29: DERECHO DE PETICION DE INTERES GENERAL | F29: Solucionado - Por traslado | G29: SECRETARIA DISTRITAL DE GOBIERNO | H29: GESTIONADO
B30: 5203902025 | C30: AREA DE ATENCION A LA CIUDADANIA | D30: WEB | E30: DERECHO DE PETICION DE INTERES GENERAL | F30: Solucionado - Por traslado | G30: SECRETARIA DISTRITAL DE GOBIERNO | H30: GESTIONADO
B31: 5204032025 | C31: AREA DE ATENCION A LA CIUDADANIA | D31: WEB | E31: DERECHO DE PETICION DE INTERES GENERAL | F31: Solucionado - Por traslado | G31: SECRETARIA DISTRITAL DE GOBIERNO | H31: GESTIONADO
B32: 5204082025 | C32: AREA DE ATENCION A LA CIUDADANIA | D32: WEB | E32: DERECHO DE PETICION DE INTERES GENERAL | F32: Solucionado - Por traslado | G32: SECRETARIA DISTRITAL DE GOBIERNO | H32: GESTIONADO
B33: 5204162025 | C33: AREA DE ATENCION A LA CIUDADANIA | D33: WEB | E33: DERECHO DE PETICION DE INTERES GENERAL | F33: Solucionado - Por traslado | G33: SECRETARIA DISTRITAL DE GOBIERNO | H33: GESTIONADO
B34: 5204362025 | C34: AREA DE ATENCION A LA CIUDADANIA | D34: WEB | E34: DERECHO DE PETICION DE INTERES GENERAL | F34: Solucionado - Por traslado | G34: SECRETARIA DISTRITAL DE GOBIERNO | H34: GESTIONADO
B35: 5209002025 | C35: AREA DE ATENCION A LA CIUDADANIA | D35: WEB | E35: DERECHO DE PETICION DE INTERES GENERAL | F35: Solucionado - Por traslado | G35: SECRETARIA DISTRITAL DE INTEGRACION SOCIAL | H35: GESTIONADO
B36: 5209032025 | C36: AREA DE ATENCION A LA CIUDADANIA | D36: WEB | E36: DERECHO DE PETICION DE INTERES GENERAL | F36: Solucionado - Por traslado | G36: SECRETARIA DISTRITAL DE GOBIERNO | H36: GESTIONADO
B37: 5209222025 | C37: AREA DE ATENCION A LA CIUDADANIA | D37: WEB | E37: DERECHO DE PETICION DE INTERES GENERAL | F37: Solucionado - Por traslado | G37: SECRETARIA DISTRITAL DE GOBIERNO | H37: GESTIONADO
B38: 5209492025 | C38: AREA DE ATENCION A LA CIUDADANIA | D38: WEB | E38: DERECHO DE PETICION DE INTERES GENERAL | F38: Solucionado - Por traslado | G38: SECRETARIA DISTRITAL DE GOBIERNO | H38: GESTIONADO
B39: 5210652025 | C39: AREA DE ATENCION A LA CIUDADANIA | D39: WEB | E39: DERECHO DE PETICION DE INTERES GENERAL | F39: Solucionado - Por traslado | G39: SECRETARIA DISTRITAL DE GOBIERNO | H39: GESTIONADO
B40: 5211292025 | C40: AREA DE ATENCION A LA CIUDADANIA | D40: WEB | E40: DERECHO DE PETICION DE INTERES GENERAL | F40: Solucionado - Por traslado | G40: SECRETARIA DISTRITAL DE GOBIERNO | H40: GESTIONADO
B41: 5211332025 | C41: AREA DE ATENCION A LA CIUDADANIA | D41: WEB | E41: DERECHO DE PETICION DE INTERES GENERAL | F41: Solucionado - Por traslado | G41: SECRETARIA DISTRITAL DE GOBIERNO | H41: GESTIONADO
B42: 5214132025 | C42: AREA DE ATENCION A LA CIUDADANIA | D42: WEB | E42: DERECHO DE PETICION DE INTERES GENERAL | F42: Solucionado - Por traslado | G42: SECRETARIA DISTRITAL DE GOBIERNO | H42: GESTIONADO
B43: 5225342025 | C43: AREA DE ATENCION A LA CIUDADANIA | D43: WEB | E43: DERECHO DE PETICION DE INTERES PARTICULAR | F43: Solucionado - Por traslado | G43: SECRETARIA DISTRITAL DE HACIENDA | H43: GESTIONADO
B44: 5226012025 | C44: AREA DE ATENCION A LA CIUDADANIA | D44: E-MAIL | E44: DERECHO DE PETICION DE INTERES GENERAL | F44: Solucionado - Por traslado | G44: SECRETARIA DISTRITAL DE GOBIERNO | H44: GESTIONADO
B45: 5229202025 | C45: AREA DE ATENCION A LA CIUDADANIA | D45: E-MAIL | E45: DERECHO DE PETICION DE INTERES PARTICULAR | F45: Solucionado por asignar - Trasladar | G45: INSTITUTO DE DESARROLLO URBANO - IDU | H45: GESTIONADO
B46: 5230492025 | C46: AREA DE ATENCION A LA CIUDADANIA | D46: WEB | E46: DERECHO DE PETICION DE INTERES GENERAL | F46: Solucionado - Por traslado | G46: SECRETARIA DISTRITAL DE GOBIERNO | H46: GESTIONADO
B47: 5230632025 | C47: AREA DE ATENCION A LA CIUDADANIA | D47: WEB | E47: DERECHO DE PETICION DE INTERES GENERAL | F47: Solucionado - Por traslado | G47: SECRETARIA DISTRITAL DE GOBIERNO | H47: GESTIONADO
B48: 5230902025 | C48: AREA DE ATENCION A LA CIUDADANIA | D48: WEB | E48: DERECHO DE PETICION DE INTERES GENERAL | F48: Solucionado - Por traslado | G48: SECRETARIA DISTRITAL DE GOBIERNO | H48: GESTIONADO
B49: 5232342025 | C49: AREA DE ATENCION A LA CIUDADANIA | D49: WEB | E49: DERECHO DE PETICION DE INTERES GENERAL | F49: Solucionado - Por traslado | G49: SECRETARIA DISTRITAL DE GOBIERNO | H49: GESTIONADO
B50: 5235432025 | C50: AREA DE ATENCION A LA CIUDADANIA | D50: WEB | E50: DERECHO DE PETICION DE INTERES GENERAL | F50: Solucionado - Por traslado | G50: SECRETARIA DISTRITAL DE GOBIERNO | H50: GESTIONADO
B51: 5235742025 | C51: AREA DE ATENCION A LA CIUDADANIA | D51: WEB | E51: DERECHO DE PETICION DE INTERES GENERAL | F51: Solucionado - Por traslado | G51: INSTITUTO DE DESARROLLO URBANO - IDU | H51: GESTIONADO
B52: 5237732025 | C52: AREA DE ATENCION A LA CIUDADANIA | D52: WEB | E52: DERECHO DE PETICION DE INTERES PARTICULAR | F52: Solucionado - Por traslado | G52: SECRETARIA DISTRITAL DE GOBIERNO | H52: GESTIONADO
B53: 5238322025 | C53: AREA DE ATENCION A LA CIUDADANIA | D53: E-MAIL | E53: DERECHO DE PETICION DE INTERES GENERAL | F53: Solucionado por asignar - Trasladar | G53: SECRETARIA DISTRITAL DE GOBIERNO | H53: GESTIONADO
B54: 5239822025 | C54: AREA DE ATENCION A LA CIUDADANIA | D54: WEB | E54: DERECHO DE PETICION DE INTERES GENERAL | F54: Solucionado - Por traslado | G54: SECRETARIA DISTRITAL DE GOBIERNO | H54: GESTIONADO
B55: 5240042025 | C55: AREA DE ATENCION A LA CIUDADANIA | D55: E-MAIL | E55: SUGERENCIA | F55: Solucionado - Por traslado | G55: INSTITUTO DE DESARROLLO URBANO - IDU | H55: GESTIONADO
B56: 5257982025 | C56: AREA DE ATENCION A LA CIUDADANIA | D56: WEB | E56: DERECHO DE PETICION DE INTERES GENERAL | F56: Solucionado - Por traslado | G56: SECRETARIA DISTRITAL DE GOBIERNO | H56: GESTIONADO
B57: 5263892025 | C57: AREA DE ATENCION A LA CIUDADANIA | D57: REDES SOCIALES | E57: DERECHO DE PETICION DE INTERES GENERAL | F57: Solucionado - Por traslado | G57: SECRETARIA DISTRITAL DE GOBIERNO | H57: GESTIONADO
B58: 5264662025 | C58: AREA DE ATENCION A LA CIUDADANIA | D58: WEB | E58: DERECHO DE PETICION DE INTERES GENERAL | F58: Solucionado - Por traslado | G58: SECRETARIA DISTRITAL DE AMBIENTE | H58: GESTIONADO
B59: 5267552025 | C59: AREA DE ATENCION A LA CIUDADANIA | D59: WEB | E59: DERECHO DE PETICION DE INTERES GENERAL | F59: Solucionado - Por traslado | G59: SECRETARIA DISTRITAL DE GOBIERNO | H59: GESTIONADO
B60: 5268312025 | C60: AREA DE ATENCION A LA CIUDADANIA | D60: WEB | E60: DERECHO DE PETICION DE INTERES GENERAL | F60: Solucionado - Por traslado | G60: SECRETARIA DISTRITAL DE INTEGRACION SOCIAL | H60: GESTIONADO
B61: 5270282025 | C61: AREA DE ATENCION A LA CIUDADANIA | D61: WEB | E61: QUEJA | F61: Solucionado - Por traslado | G61: SECRETARIA DISTRITAL DE GOBIERNO | H61: GESTIONADO
B62: 5272782025 | C62: AREA DE ATENCION A LA CIUDADANIA | D62: E-MAIL | E62: DERECHO DE PETICION DE INTERES GENERAL | F62: Solucionado - Por traslado | G62: SECRETARIA DISTRITAL DE GOBIERNO | H62: GESTIONADO
B63: 5274162025 | C63: AREA DE ATENCION A LA CIUDADANIA | D63: E-MAIL | E63: DERECHO DE PETICION DE INTERES GENERAL | F63: Solucionado - Por traslado | G63: SECRETARIA DISTRITAL DE GOBIERNO | H63: GESTIONADO
B64: 5274492025 | C64: AREA DE ATENCION A LA CIUDADANIA | D64: WEB | E64: DERECHO DE PETICION DE INTERES GENERAL | F64: Solucionado - Por traslado | G64: SECRETARIA DISTRITAL DE GOBIERNO | H64: GESTIONADO
B65: 5275292025 | C65: AREA DE ATENCION A LA CIUDADANIA | D65: WEB | E65: DERECHO DE PETICION DE INTERES GENERAL | F65: Solucionado - Por traslado | G65: SECRETARIA DISTRITAL DE GOBIERNO | H65: GESTIONADO
B66: 5276072025 | C66: AREA DE ATENCION A LA CIUDADANIA | D66: WEB | E66: DERECHO DE PETICION DE INTERES GENERAL | F66: Solucionado - Por traslado | G66: SECRETARIA DISTRITAL DE GOBIERNO | H66: GESTIONADO
B67: 5277412025 | C67: AREA DE ATENCION A LA CIUDADANIA | D67: WEB | E67: DERECHO DE PETICION DE INTERES GENERAL | F67: Solucionado por asignar - Trasladar | G67: SECRETARIA DISTRITAL DE GOBIERNO | H67: GESTIONADO
B68: 5279362025 | C68: AREA DE ATENCION A LA CIUDADANIA | D68: WEB | E68: DERECHO DE PETICION DE INTERES PARTICULAR | F68: Solucionado - Por traslado | G68: EMPRESA DE TRANSPORTE DEL TERCER MILENIO TRANSMILENIO S.A. | H68: GESTIONADO
B69: 5280282025 | C69: AREA DE ATENCION A LA CIUDADANIA | D69: WEB | E69: DERECHO DE PETICION DE INTERES GENERAL | F69: Solucionado - Por traslado | G69: SECRETARIA DISTRITAL DE GOBIERNO | H69: GESTIONADO
B70: 5280792025 | C70: AREA DE ATENCION A LA CIUDADANIA | D70: WEB | E70: DERECHO DE PETICION DE INTERES GENERAL | F70: Solucionado - Por traslado | G70: SECRETARIA DISTRITAL DE GOBIERNO | H70: GESTIONADO
B71: 5281002025 | C71: AREA DE ATENCION A LA CIUDADANIA | D71: WEB | E71: DERECHO DE PETICION DE INTERES GENERAL | F71: Solucionado - Por traslado | G71: SECRETARIA DISTRITAL DE GOBIERNO | H71: GESTIONADO
B72: 5282542025 | C72: AREA DE ATENCION A LA CIUDADANIA | D72: WEB | E72: DERECHO DE PETICION DE INTERES GENERAL | F72: Solucionado - Por traslado | G72: SECRETARIA DISTRITAL DE INTEGRACION SOCIAL | H72: GESTIONADO
B73: 5283102025 | C73: AREA DE ATENCION A LA CIUDADANIA | D73: BUZON | E73: DERECHO DE PETICION DE INTERES PARTICULAR | F73: Solucionado - Por traslado | G73: SECRETARIA DISTRITAL DE GOBIERNO | H73: GESTIONADO
B74: 5284562025 | C74: AREA DE ATENCION A LA CIUDADANIA | D74: WEB | E74: DERECHO DE PETICION DE INTERES PARTICULAR | F74: Solucionado - Por traslado | G74: SECRETARIA DISTRITAL DE GOBIERNO | H74: GESTIONADO
B75: 5291962025 | C75: AREA DE ATENCION A LA CIUDADANIA | D75: WEB | E75: DERECHO DE PETICION DE INTERES GENERAL | F75: Solucionado - Por traslado | G75: SECRETARIA DISTRITAL DE GOBIERNO | H75: GESTIONADO
B76: 5292322025 | C76: AREA DE ATENCION A LA CIUDADANIA | D76: WEB | E76: DERECHO DE PETICION DE INTERES GENERAL | F76: Solucionado - Por traslado | G76: EMPRESA DE TRANSPORTE DEL TERCER MILENIO TRANSMILENIO S.A. | H76: GESTIONADO
B77: 5296112025 | C77: AREA DE ATENCION A LA CIUDADANIA | D77: WEB | E77: DERECHO DE PETICION DE INTERES GENERAL | F77: Solucionado - Por traslado | G77: SECRETARIA DISTRITAL DE GOBIERNO | H77: GESTIONADO
B78: 5296142025 | C78: AREA DE ATENCION A LA CIUDADANIA | D78: WEB | E78: DERECHO DE PETICION DE INTERES PARTICULAR | F78: Solucionado - Por traslado | G78: SECRETARIA DISTRITAL DE GOBIERNO | H78: GESTIONADO
B79: 5297562025 | C79: AREA DE ATENCION A LA CIUDADANIA | D79: WEB | E79: DERECHO DE PETICION DE INTERES GENERAL | F79: Solucionado - Por traslado | G79: SECRETARIA DISTRITAL DE GOBIERNO | H79: GESTIONADO
B80: 5298662025 | C80: AREA DE ATENCION A LA CIUDADANIA | D80: WEB | E80: DERECHO DE PETICION DE INTERES GENERAL | F80: Solucionado - Por traslado | G80: SECRETARIA DISTRITAL DE GOBIERNO | H80: GESTIONADO
B81: 5300372025 | C81: AREA DE ATENCION A LA CIUDADANIA | D81: E-MAIL | E81: DERECHO DE PETICION DE INTERES GENERAL | F81: Solucionado - Por traslado | G81: SECRETARIA DISTRITAL DE GOBIERNO | H81: GESTIONADO
B82: 5300802025 | C82: AREA DE ATENCION A LA CIUDADANIA | D82: WEB | E82: DERECHO DE PETICION DE INTERES GENERAL | F82: Solucionado - Por traslado | G82: SECRETARIA DISTRITAL DE GOBIERNO | H82: GESTIONADO
B83: 5301752025 | C83: AREA DE ATENCION A LA CIUDADANIA | D83: PRESENCIAL | E83: DERECHO DE PETICION DE INTERES GENERAL | F83: Solucionado - Por traslado | G83: SECRETARIA DISTRITAL DE GOBIERNO | H83: GESTIONADO
B84: 5306542025 | C84: AREA DE ATENCION A LA CIUDADANIA | D84: E-MAIL | E84: DERECHO DE PETICION DE INTERES GENERAL | F84: Solucionado por asignar - Trasladar | G84: SECRETARIA DISTRITAL DE GOBIERNO | H84: GESTIONADO
B85: 5307522025 | C85: AREA DE ATENCION A LA CIUDADANIA | D85: E-MAIL | E85: DERECHO DE PETICION DE INTERES GENERAL | F85: Solucionado por asignar - Trasladar | G85: SECRETARIA DISTRITAL DE GOBIERNO | H85: GESTIONADO
B86: 5311132025 | C86: AREA DE ATENCION A LA CIUDADANIA | D86: WEB | E86: DERECHO DE PETICION DE INTERES PARTICULAR | F86: Solucionado - Por traslado | G86: SECRETARIA DISTRITAL DE GOBIERNO | H86: GESTIONADO
B87: 5312142025 | C87: AREA DE ATENCION A LA CIUDADANIA | D87: WEB | E87: RECLAMO | F87: Solucionado - Por traslado | G87: SECRETARIA DISTRITAL DE GOBIERNO | H87: GESTIONADO
B88: 5315022025 | C88: AREA DE ATENCION A LA CIUDADANIA | D88: WEB | E88: DERECHO DE PETICION DE INTERES GENERAL | F88: Solucionado - Por traslado | G88: SECRETARIA DISTRITAL DE GOBIERNO | H88: GESTIONADO
B89: 5316432025 | C89: AREA DE ATENCION A LA CIUDADANIA | D89: TELEFONO | E89: DERECHO DE PETICION DE INTERES GENERAL | F89: Solucionado - Por traslado | G89: SECRETARIA DISTRITAL DE MOVILIDAD | H89: GESTIONADO
B90: 5318402025 | C90: AREA DE ATENCION A LA CIUDADANIA | D90: WEB | E90: DERECHO DE PETICION DE INTERES PARTICULAR | F90: Solucionado - Por traslado | G90: ENTIDAD NACIONAL | H90: GESTIONADO
B91: 5322422025 | C91: AREA DE ATENCION A LA CIUDADANIA | D91: WEB | E91: DERECHO DE PETICION DE INTERES GENERAL | F91: Solucionado - Por traslado | G91: SECRETARIA DISTRITAL DE GOBIERNO | H91: GESTIONADO
B92: 5322722025 | C92: AREA DE ATENCION A LA CIUDADANIA | D92: WEB | E92: DERECHO DE PETICION DE INTERES GENERAL | F92: Solucionado - Por traslado | G92: SECRETARIA DISTRITAL DE GOBIERNO | H92: GESTIONADO
B93: 5323292025 | C93: AREA DE ATENCION A LA CIUDADANIA | D93: WEB | E93: DERECHO DE PETICION DE INTERES GENERAL | F93: Solucionado - Por traslado | G93: SECRETARIA DISTRITAL DE GOBIERNO | H93: GESTIONADO
B94: 5323762025 | C94: AREA DE ATENCION A LA CIUDADANIA | D94: WEB | E94: CONSULTA | F94: Solucionado - Por traslado | G94: SECRETARIA DISTRITAL DE AMBIENTE | H94: GESTIONADO
B95: 5324152025 | C95: AREA DE ATENCION A LA CIUDADANIA | D95: WEB | E95: DERECHO DE PETICION DE INTERES GENERAL | F95: Solucionado - Por traslado | G95: SECRETARIA DISTRITAL DE GOBIERNO | H95: GESTIONADO
B96: 5324552025 | C96: AREA DE ATENCION A LA CIUDADANIA | D96: WEB | E96: DERECHO DE PETICION DE INTERES GENERAL | F96: Solucionado - Por traslado | G96: SECRETARIA DISTRITAL DE GOBIERNO | H96: GESTIONADO
B97: 5325132025 | C97: AREA DE ATENCION A LA CIUDADANIA | D97: WEB | E97: DERECHO DE PETICION DE INTERES GENERAL | F97: Solucionado - Por traslado | G97: SUBRED INTEGRADA DE SERVICIOS DE SALUD NORTE E.S.E. | H97: GESTIONADO
B98: 5325752025 | C98: AREA DE ATENCION A LA CIUDADANIA | D98: WEB | E98: DERECHO DE PETICION DE INTERES PARTICULAR | F98: Solucionado por asignar - Trasladar | G98: TERMINAL DE TRANSPORTES S.A. | H98: GESTIONADO
B99: 5326292025 | C99: AREA DE ATENCION A LA CIUDADANIA | D99: WEB | E99: DERECHO DE PETICION DE INTERES GENERAL | F99: Solucionado - Por traslado | G99: SECRETARIA DISTRITAL DE AMBIENTE | H99: GESTIONADO
B100: 5326302025 | C100: AREA DE ATENCION A LA CIUDADANIA | D100: WEB | E100: DERECHO DE PETICION DE INTERES GENERAL | F100: Solucionado - Por traslado | G100: SECRETARIA DISTRITAL DE GOBIERNO | H100: GESTIONADO
B101: 5326312025 | C101: AREA DE ATENCION A LA CIUDADANIA | D101: WEB | E101: DERECHO DE PETICION DE INTERES GENERAL | F101: Solucionado - Por traslado | G101: SECRETARIA DISTRITAL DE AMBIENTE | H101: GESTIONADO
B102: 5326322025 | C102: AREA DE ATENCION A LA CIUDADANIA | D102: WEB | E102: DERECHO DE PETICION DE INTERES PARTICULAR | F102: Solucionado - Por traslado | G102: SECRETARIA DISTRITAL DE AMBIENTE | H102: GESTIONADO
B103: 5327562025 | C103: AREA DE ATENCION A LA CIUDADANIA | D103: WEB | E103: DERECHO DE PETICION DE INTERES GENERAL | F103: Solucionado - Por traslado | G103: SECRETARIA DISTRITAL DE GOBIERNO | H103: GESTIONADO
B104: 5329352025 | C104: AREA DE ATENCION A LA CIUDADANIA | D104: WEB | E104: RECLAMO | F104: Solucionado - Por traslado | G104: SECRETARIA DISTRITAL DE GOBIERNO | H104: GESTIONADO
B105: 5329412025 | C105: AREA DE ATENCION A LA CIUDADANIA | D105: WEB | E105: DERECHO DE PETICION DE INTERES GENERAL | F105: Solucionado - Por traslado | G105: SECRETARIA DISTRITAL DE AMBIENTE | H105: GESTIONADO
B106: 5330622025 | C106: AREA DE ATENCION A LA CIUDADANIA | D106: WEB | E106: DERECHO DE PETICION DE INTERES GENERAL | F106: Solucionado - Por traslado | G106: INSTITUTO PARA LA ECONOMIA SOCIAL - IPES | H106: GESTIONADO
B107: 5330812025 | C107: AREA DE ATENCION A LA CIUDADANIA | D107: WEB | E107: DERECHO DE PETICION DE INTERES PARTICULAR | F107: Solucionado - Por traslado | G107: SECRETARIA DISTRITAL DE GOBIERNO | H107: GESTIONADO
B108: 5331002025 | C108: AREA DE ATENCION A LA CIUDADANIA | D108: WEB | E108: DERECHO DE PETICION DE INTERES PARTICULAR | F108: Solucionado - Por traslado | G108: SECRETARIA DISTRITAL DE GOBIERNO | H108: GESTIONADO
B109: 5331082025 | C109: AREA DE ATENCION A LA CIUDADANIA | D109: WEB | E109: DERECHO DE PETICION DE INTERES PARTICULAR | F109: Solucionado - Por traslado | G109: SECRETARIA DISTRITAL DE GOBIERNO | H109: GESTIONADO
B110: 5331182025 | C110: AREA DE ATENCION A LA CIUDADANIA | D110: WEB | E110: DERECHO DE PETICION DE INTERES GENERAL | F110: Solucionado - Por traslado | G110: SECRETARIA DISTRITAL DE GOBIERNO | H110: GESTIONADO
B111: 5331502025 | C111: AREA DE ATENCION A LA CIUDADANIA | D111: WEB | E111: DERECHO DE PETICION DE INTERES GENERAL | F111: Solucionado - Por traslado | G111: SECRETARIA DISTRITAL DE GOBIERNO | H111: GESTIONADO
B112: 5332452025 | C112: AREA DE ATENCION A LA CIUDADANIA | D112: WEB | E112: DERECHO DE PETICION DE INTERES GENERAL | F112: Solucionado - Por traslado | G112: SECRETARIA DISTRITAL DE GOBIERNO | H112: GESTIONADO
B113: 5332732025 | C113: AREA DE ATENCION A LA CIUDADANIA | D113: WEB | E113: DERECHO DE PETICION DE INTERES GENERAL | F113: Solucionado - Por traslado | G113: SECRETARIA DISTRITAL DE AMBIENTE | H113: GESTIONADO
B114: 5333232025 | C114: AREA DE ATENCION A LA CIUDADANIA | D114: WEB | E114: DERECHO DE PETICION DE INTERES GENERAL | F114: Solucionado - Por traslado | G114: EMPRESA DE ACUEDUCTO Y ALCANTARILLADO DE BOGOTA EAAB - ESP | H114: GESTIONADO
B115: 5333252025 | C115: AREA DE ATENCION A LA CIUDADANIA | D115: WEB | E115: DERECHO DE PETICION DE INTERES GENERAL | F115: Solucionado - Por traslado | G115: SECRETARIA DISTRITAL DE AMBIENTE | H115: GESTIONADO
B116: 5335602025 | C116: AREA DE ATENCION A LA CIUDADANIA | D116: WEB | E116: DERECHO DE PETICION DE INTERES GENERAL | F116: Solucionado por asignar - Trasladar | G116: SECRETARIA DISTRITAL DE GOBIERNO | H116: GESTIONADO
B117: 5335622025 | C117: AREA DE ATENCION A LA CIUDADANIA | D117: E-MAIL | E117: DERECHO DE PETICION DE INTERES PARTICULAR | F117: Solucionado - Por traslado | G117: SECRETARIA DISTRITAL DE GOBIERNO | H117: GESTIONADO
B118: 5336022025 | C118: AREA DE ATENCION A LA CIUDADANIA | D118: E-MAIL | E118: DERECHO DE PETICION DE INTERES GENERAL | F118: Solucionado - Por traslado | G118: SECRETARIA DISTRITAL DE GOBIERNO | H118: GESTIONADO
B119: 5336432025 | C119: AREA DE ATENCION A LA CIUDADANIA | D119: E-MAIL | E119: DERECHO DE PETICION DE INTERES GENERAL | F119: Solucionado - Por traslado | G119: SECRETARIA DISTRITAL DE GOBIERNO | H119: GESTIONADO
B120: 5336612025 | C120: AREA DE ATENCION A LA CIUDADANIA | D120: E-MAIL | E120: DERECHO DE PETICION DE INTERES GENERAL | F120: Solucionado - Por traslado | G120: SECRETARIA DISTRITAL DE GOBIERNO | H120: GESTIONADO
B121: 5336862025 | C121: AREA DE ATENCION A LA CIUDADANIA | D121: E-MAIL | E121: DERECHO DE PETICION DE INTERES GENERAL | F121: Solucionado - Por traslado | G121: SECRETARIA DISTRITAL DE GOBIERNO | H121: GESTIONADO
B122: 5337312025 | C122: AREA DE ATENCION A LA CIUDADANIA | D122: E-MAIL | E122: DERECHO DE PETICION DE INTERES GENERAL | F122: Solucionado - Por traslado | G122: SECRETARIA DISTRITAL DE GOBIERNO | H122: GESTIONADO
B123: 5338412025 | C123: AREA DE ATENCION A LA CIUDADANIA | D123: E-MAIL | E123: DERECHO DE PETICION DE INTERES GENERAL | F123: Solucionado por asignar - Trasladar | G123: SECRETARIA DISTRITAL DE GOBIERNO | H123: GESTIONADO
B124: 5340362025 | C124: AREA DE ATENCION A LA CIUDADANIA | D124: WEB | E124: DERECHO DE PETICION DE INTERES GENERAL | F124: Solucionado - Por traslado | G124: SECRETARIA DISTRITAL DE GOBIERNO | H124: GESTIONADO
B125: 5341122025 | C125: AREA DE ATENCION A LA CIUDADANIA | D125: WEB | E125: DERECHO DE PETICION DE INTERES GENERAL | F125: Solucionado - Por traslado | G125: SECRETARIA DISTRITAL DE INTEGRACION SOCIAL | H125: GESTIONADO
B126: 5342312025 | C126: AREA DE ATENCION A LA CIUDADANIA | D126: WEB | E126: DERECHO DE PETICION DE INTERES GENERAL | F126: Solucionado - Por traslado | G126: SECRETARIA DISTRITAL DE GOBIERNO | H126: GESTIONADO
B127: 5343582025 | C127: AREA DE ATENCION A LA CIUDADANIA | D127: E-MAIL | E127: DERECHO DE PETICION DE INTERES GENERAL | F127: Solucionado - Por traslado | G127: SECRETARIA DISTRITAL DE GOBIERNO | H127: GESTIONADO
B128: 5344172025 | C128: AREA DE ATENCION A LA CIUDADANIA | D128: WEB | E128: DERECHO DE PETICION DE INTERES PARTICULAR | F128: Solucionado - Por traslado | G128: SECRETARIA DISTRITAL DE GOBIERNO | H128: GESTIONADO
B129: 5344702025 | C129: AREA DE ATENCION A LA CIUDADANIA | D129: PRESENCIAL | E129: DERECHO DE PETICION DE INTERES GENERAL | F129: Solucionado - Por traslado | G129: SECRETARIA DISTRITAL DE GOBIERNO | H129: GESTIONADO
B130: 5347482025 | C130: AREA DE ATENCION A LA CIUDADANIA | D130: WEB | E130: SUGERENCIA | F130: Solucionado - Por traslado | G130: SECRETARIA DISTRITAL DE GOBIERNO | H130: GESTIONADO
B131: 5351072025 | C131: SUBDIRECCION DE REGISTRO INMOBILIARIO | D131: WEB | E131: CONSULTA | F131: Solucionado por asignar - Trasladar | G131: INSTITUTO DE DESARROLLO URBANO - IDU | H131: GESTIONADO
B132: 5351582025 | C132: AREA DE ATENCION A LA CIUDADANIA | D132: E-MAIL | E132: DERECHO DE PETICION DE INTERES GENERAL | F132: Solucionado - Por traslado | G132: SECRETARIA DISTRITAL DE GOBIERNO | H132: GESTIONADO
B133: 5354332025 | C133: AREA DE ATENCION A LA CIUDADANIA | D133: WEB | E133: DERECHO DE PETICION DE INTERES GENERAL | F133: Solucionado - Por traslado | G133: SECRETARIA DISTRITAL DE GOBIERNO | H133: GESTIONADO
B134: 5354532025 | C134: AREA DE ATENCION A LA CIUDADANIA | D134: WEB | E134: DERECHO DE PETICION DE INTERES GENERAL | F134: Solucionado - Por traslado | G134: SECRETARIA DISTRITAL DE MOVILIDAD | H134: GESTIONADO
B135: 5354602025 | C135: AREA DE ATENCION A LA CIUDADANIA | D135: WEB | E135: QUEJA | F135: Solucionado - Por traslado | G135: SECRETARIA DISTRITAL DE GOBIERNO | H135: GESTIONADO
B136: 5355132025 | C136: AREA DE ATENCION A LA CIUDADANIA | D136: WEB | E136: DERECHO DE PETICION DE INTERES GENERAL | F136: Solucionado - Por traslado | G136: SECRETARIA DISTRITAL DE GOBIERNO | H136: GESTIONADO
B137: 5357322025 | C137: AREA DE ATENCION A LA CIUDADANIA | D137: WEB | E137: DERECHO DE PETICION DE INTERES GENERAL | F137: Solucionado - Por traslado | G137: SECRETARIA DISTRITAL DE GOBIERNO | H137: GESTIONADO
B138: 5367382025 | C138: AREA DE ATENCION A LA CIUDADANIA | D138: WEB | E138: DERECHO DE PETICION DE INTERES PARTICULAR | F138: Solucionado - Por traslado | G138: SECRETARIA DISTRITAL DE GOBIERNO | H138: GESTIONADO
B139: 5369552025 | C139: AREA DE ATENCION A LA CIUDADANIA | D139: WEB | E139: DERECHO DE PETICION DE INTERES PARTICULAR | F139: Solucionado por asignar - Trasladar | G139: TERMINAL DE TRANSPORTES S.A. | H139: GESTIONADO
B140: 5371002025 | C140: AREA DE ATENCION A LA CIUDADANIA | D140: WEB | E140: DERECHO DE PETICION DE INTERES GENERAL | F140: Solucionado - Por traslado | G140: SECRETARIA DISTRITAL DE GOBIERNO | H140: GESTIONADO
B141: 5372612025 | C141: AREA DE ATENCION A LA CIUDADANIA | D141: WEB | E141: DERECHO DE PETICION DE INTERES GENERAL | F141: Solucionado - Por traslado | G141: SECRETARIA DISTRITAL DE GOBIERNO | H141: GESTIONADO
B142: 5374492025 | C142: AREA DE ATENCION A LA CIUDADANIA | D142: WEB | E142: DERECHO DE PETICION DE INTERES GENERAL | F142: Solucionado - Por traslado | G142: SECRETARIA DISTRITAL DE GOBIERNO | H142: GESTIONADO
B143: 5377492025 | C143: AREA DE ATENCION A LA CIUDADANIA | D143: WEB | E143: DERECHO DE PETICION DE INTERES GENERAL | F143: Solucionado - Por traslado | G143: SECRETARIA DISTRITAL DE GOBIERNO | H143: GESTIONADO
B144: 5377532025 | C144: AREA DE ATENCION A LA CIUDADANIA | D144: WEB | E144: DERECHO DE PETICION DE INTERES GENERAL | F144: Solucionado - Por traslado | G144: INSTITUTO DISTRITAL DE PROTECCION Y BIENESTAR ANIMAL - IDPYBA | H144: GESTIONADO
B145: 5377632025 | C145: AREA DE ATENCION A LA CIUDADANIA | D145: WEB | E145: DERECHO DE PETICION DE INTERES GENERAL | F145: Solucionado - Por traslado | G145: SECRETARIA DISTRITAL DE INTEGRACION SOCIAL | H145: GESTIONADO
B146: 5377682025 | C146: AREA DE ATENCION A LA CIUDADANIA | D146: WEB | E146: QUEJA | F146: Solucionado - Por traslado | G146: INSTITUTO DISTRITAL DE PROTECCION Y BIENESTAR ANIMAL - IDPYBA | H146: GESTIONADO
B147: 5379032025 | C147: AREA DE ATENCION A LA CIUDADANIA | D147: WEB | E147: DERECHO DE PETICION DE INTERES GENERAL | F147: Solucionado - Por traslado | G147: SECRETARIA DISTRITAL DE GOBIERNO | H147: GESTIONADO
B148: 5380272025 | C148: AREA DE ATENCION A LA CIUDADANIA | D148: WEB | E148: DERECHO DE PETICION DE INTERES PARTICULAR | F148: Solucionado - Por traslado | G148: SECRETARIA DISTRITAL DE SEGURIDAD CONVIVENCIA Y JUSTICIA | H148: GESTIONADO
B149: 5381222025 | C149: AREA DE ATENCION A LA CIUDADANIA | D149: E-MAIL | E149: DERECHO DE PETICION DE INTERES GENERAL | F149: Solucionado - Por traslado | G149: SECRETARIA DISTRITAL DE GOBIERNO | H149: GESTIONADO
B150: 5382032025 | C150: AREA DE ATENCION A LA CIUDADANIA | D150: WEB | E150: DERECHO DE PETICION DE INTERES PARTICULAR | F150: Solucionado - Por traslado | G150: SECRETARIA DISTRITAL DE GOBIERNO | H150: GESTIONADO
B151: 5382602025 | C151: AREA DE ATENCION A LA CIUDADANIA | D151: WEB | E151: DERECHO DE PETICION DE INTERES GENERAL | F151: Solucionado por asignar - Trasladar | G151: SECRETARIA DISTRITAL DE GOBIERNO | H151: GESTIONADO
B152: 5382682025 | C152: AREA DE ATENCION A LA CIUDADANIA | D152: WEB | E152: DERECHO DE PETICION DE INTERES GENERAL | F152: Solucionado - Por traslado | G152: SECRETARIA DISTRITAL DE GOBIERNO | H152: GESTIONADO
B153: 5383332025 | C153: AREA DE ATENCION A LA CIUDADANIA | D153: WEB | E153: DERECHO DE PETICION DE INTERES GENERAL | F153: Solucionado - Por traslado | G153: SECRETARIA DISTRITAL DE GOBIERNO | H153: GESTIONADO
B154: 5384172025 | C154: AREA DE ATENCION A LA CIUDADANIA | D154: WEB | E154: DERECHO DE PETICION DE INTERES GENERAL | F154: Solucionado - Por traslado | G154: ENTIDAD NACIONAL | H154: GESTIONADO
B155: 5384472025 | C155: AREA DE ATENCION A LA CIUDADANIA | D155: WEB | E155: DERECHO DE PETICION DE INTERES PARTICULAR | F155: Solucionado - Por traslado | G155: INSTITUTO DE DESARROLLO URBANO - IDU | H155: GESTIONADO
B156: 5385002025 | C156: AREA DE ATENCION A LA CIUDADANIA | D156: WEB | E156: DERECHO DE PETICION DE INTERES GENERAL | F156: Solucionado - Por traslado | G156: SECRETARIA DISTRITAL DE MOVILIDAD | H156: GESTIONADO
B157: 5385222025 | C157: AREA DE ATENCION A LA CIUDADANIA | D157: WEB | E157: DERECHO DE PETICION DE INTERES GENERAL | F157: Solucionado - Por traslado | G157: SECRETARIA DISTRITAL DE GOBIERNO | H157: GESTIONADO
B158: 5386002025 | C158: AREA DE ATENCION A LA CIUDADANIA | D158: WEB | E158: DERECHO DE PETICION DE INTERES GENERAL | F158: Solucionado - Por traslado | G158: SECRETARIA DISTRITAL DE GOBIERNO | H158: GESTIONADO
B159: 5386362025 | C159: AREA DE ATENCION A LA CIUDADANIA | D159: WEB | E159: DERECHO DE PETICION DE INTERES GENERAL | F159: Solucionado - Por traslado | G159: SECRETARIA DISTRITAL DE GOBIERNO | H159: GESTIONADO
B160: 5386482025 | C160: AREA DE ATENCION A LA CIUDADANIA | D160: WEB | E160: DERECHO DE PETICION DE INTERES GENERAL | F160: Solucionado - Por traslado | G160: SECRETARIA DISTRITAL DE GOBIERNO | H160: GESTIONADO
B161: 5400572025 | C161: AREA DE ATENCION A LA CIUDADANIA | D161: PRESENCIAL | E161: DERECHO DE PETICION DE INTERES GENERAL | F161: Solucionado por asignar - Trasladar | G161: SECRETARIA DISTRITAL DE GOBIERNO | H161: GESTIONADO
B162: 5402342025 | C162: AREA DE ATENCION A LA CIUDADANIA | D162: WEB | E162: DERECHO DE PETICION DE INTERES GENERAL | F162: Solucionado - Por traslado | G162: SECRETARIA DISTRITAL DE INTEGRACION SOCIAL | H162: GESTIONADO
B163: 5402462025 | C163: AREA DE ATENCION A LA CIUDADANIA | D163: E-MAIL | E163: DERECHO DE PETICION DE INTERES GENERAL | F163: Solucionado por asignar - Trasladar | G163: SECRETARIA DISTRITAL DE GOBIERNO | H163: GESTIONADO
B164: 5403942025 | C164: AREA DE ATENCION A LA CIUDADANIA | D164: E-MAIL | E164: DERECHO DE PETICION DE INTERES GENERAL | F164: Solucionado - Por traslado | G164: SECRETARIA DISTRITAL DE GOBIERNO | H164: GESTIONADO
B165: 5405082025 | C165: AREA DE ATENCION A LA CIUDADANIA | D165: WEB | E165: DERECHO DE PETICION DE INTERES GENERAL | F165: Solucionado - Por traslado | G165: SECRETARIA DISTRITAL DE GOBIERNO | H165: GESTIONADO
B166: 5409322025 | C166: AREA DE ATENCION A LA CIUDADANIA | D166: WEB | E166: DERECHO DE PETICION DE INTERES GENERAL | F166: Solucionado - Por traslado | G166: SECRETARIA DISTRITAL DE GOBIERNO | H166: GESTIONADO
B167: 5411842025 | C167: AREA DE ATENCION A LA CIUDADANIA | D167: WEB | E167: DERECHO DE PETICION DE INTERES GENERAL | F167: Solucionado - Por traslado | G167: SECRETARIA DISTRITAL DE GOBIERNO | H167: GESTIONADO
B168: 5412172025 | C168: AREA DE ATENCION A LA CIUDADANIA | D168: E-MAIL | E168: DERECHO DE PETICION DE INTERES GENERAL | F168: Solucionado por asignar - Trasladar | G168: SECRETARIA DISTRITAL DE GOBIERNO | H168: GESTIONADO
B169: 5412392025 | C169: AREA DE ATENCION A LA CIUDADANIA | D169: E-MAIL | E169: DERECHO DE PETICION DE INTERES GENERAL | F169: Solucionado - Por traslado | G169: SECRETARIA DISTRITAL DE GOBIERNO | H169: GESTIONADO
B170: 5412432025 | C170: AREA DE ATENCION A LA CIUDADANIA | D170: WEB | E170: DERECHO DE PETICION DE INTERES GENERAL | F170: Solucionado - Por traslado | G170: SECRETARIA DISTRITAL DE GOBIERNO | H170: GESTIONADO
B171: 5414662025 | C171: AREA DE ATENCION A LA CIUDADANIA | D171: E-MAIL | E171: DERECHO DE PETICION DE INTERES GENERAL | F171: Solucionado - Por traslado | G171: SECRETARIA DISTRITAL DE GOBIERNO | H171: GESTIONADO
B172: 5414682025 | C172: AREA DE ATENCION A LA CIUDADANIA | D172: E-MAIL | E172: DERECHO DE PETICION DE INTERES GENERAL | F172: Solucionado por asignar - Trasladar | G172: INSTITUTO PARA LA ECONOMIA SOCIAL - IPES | H172: GESTIONADO
B173: 5415492025 | C173: AREA DE ATENCION A LA CIUDADANIA | D173: WEB | E173: DERECHO DE PETICION DE INTERES GENERAL | F173: Solucionado - Por traslado | G173: SECRETARIA DISTRITAL DE GOBIERNO | H173: GESTIONADO
B174: 5415902025 | C174: AREA DE ATENCION A LA CIUDADANIA | D174: WEB | E174: DERECHO DE PETICION DE INTERES PARTICULAR | F174: Solucionado - Por traslado | G174: SECRETARIA DISTRITAL DE AMBIENTE | H174: GESTIONADO
B175: 5416192025 | C175: AREA DE ATENCION A LA CIUDADANIA | D175: E-MAIL | E175: DERECHO DE PETICION DE INTERES GENERAL | F175: Solucionado por asignar - Trasladar | G175: SECRETARIA DISTRITAL DE GOBIERNO | H175: GESTIONADO
B176: 5416912025 | C176: AREA DE ATENCION A LA CIUDADANIA | D176: WEB | E176: DERECHO DE PETICION DE INTERES GENERAL | F176: Solucionado - Por traslado | G176: SECRETARIA DISTRITAL DE MOVILIDAD | H176: GESTIONADO
B177: 5417012025 | C177: AREA DE ATENCION A LA CIUDADANIA | D177: WEB | E177: DERECHO DE PETICION DE INTERES GENERAL | F177: Solucionado - Por traslado | G177: SECRETARIA DISTRITAL DE AMBIENTE | H177: GESTIONADO
B178: 5417032025 | C178: AREA DE ATENCION A LA CIUDADANIA | D178: WEB | E178: DERECHO DE PETICION DE INTERES GENERAL | F178: Solucionado - Por traslado | G178: SECRETARIA DISTRITAL DE AMBIENTE | H178: GESTIONADO
B179: 5417362025 | C179: AREA DE ATENCION A LA CIUDADANIA | D179: E-MAIL | E179: DERECHO DE PETICION DE INTERES GENERAL | F179: Solucionado por asignar - Trasladar | G179: SECRETARIA DISTRITAL DE GOBIERNO | H179: GESTIONADO
B180: 5418312025 | C180: AREA DE ATENCION A LA CIUDADANIA | D180: WEB | E180: DERECHO DE PETICION DE INTERES GENERAL | F180: Solucionado - Por traslado | G180: SECRETARIA DISTRITAL DE GOBIERNO | H180: GESTIONADO
B181: 5420212025 | C181: AREA DE ATENCION A LA CIUDADANIA | D181: WEB | E181: DERECHO DE PETICION DE INTERES GENERAL | F181: Solucionado por asignar - Trasladar | G181: SECRETARIA DISTRITAL DE GOBIERNO | H181: GESTIONADO
B182: 5420302025 | C182: AREA DE ATENCION A LA CIUDADANIA | D182: WEB | E182: DERECHO DE PETICION DE INTERES GENERAL | F182: Solucionado - Por traslado | G182: SECRETARIA DISTRITAL DE GOBIERNO | H182: GESTIONADO
B183: 5420732025 | C183: AREA DE ATENCION A LA CIUDADANIA | D183: WEB | E183: DERECHO DE PETICION DE INTERES PARTICULAR | F183: Solucionado - Por traslado | G183: SECRETARIA DISTRITAL DE GOBIERNO | H183: GESTIONADO
B184: 5420962025 | C184: AREA DE ATENCION A LA CIUDADANIA | D184: WEB | E184: DERECHO DE PETICION DE INTERES GENERAL | F184: Solucionado - Por traslado | G184: SECRETARIA DISTRITAL DE MOVILIDAD | H184: GESTIONADO
B185: 5421682025 | C185: AREA DE ATENCION A LA CIUDADANIA | D185: WEB | E185: DERECHO DE PETICION DE INTERES GENERAL | F185: Solucionado - Por traslado | G185: SECRETARIA DISTRITAL DE MOVILIDAD | H185: GESTIONADO
B186: 5421892025 | C186: AREA DE ATENCION A LA CIUDADANIA | D186: WEB | E186: DERECHO DE PETICION DE INTERES GENERAL | F186: Solucionado - Por traslado | G186: INSTITUTO DE DESARROLLO URBANO - IDU | H186: GESTIONADO
B187: 5423622025 | C187: AREA DE ATENCION A LA CIUDADANIA | D187: WEB | E187: DERECHO DE PETICION DE INTERES PARTICULAR | F187: Solucionado - Por traslado | G187: SECRETARIA DISTRITAL DE GOBIERNO | H187: GESTIONADO
B188: 5423842025 | C188: AREA DE ATENCION A LA CIUDADANIA | D188: WEB | E188: DERECHO DE PETICION DE INTERES GENERAL | F188: Solucionado - Por traslado | G188: SECRETARIA DISTRITAL DE GOBIERNO | H188: GESTIONADO
B189: 5424902025 | C189: AREA DE ATENCION A LA CIUDADANIA | D189: WEB | E189: DERECHO DE PETICION DE INTERES GENERAL | F189: Solucionado - Por traslado | G189: SECRETARIA DISTRITAL DE GOBIERNO | H189: GESTIONADO
B190: 5434852025 | C190: AREA DE ATENCION A LA CIUDADANIA | D190: WEB | E190: DERECHO DE PETICION DE INTERES GENERAL | F190: Solucionado - Por traslado | G190: SECRETARIA DISTRITAL DE GOBIERNO | H190: GESTIONADO
B191: 5436382025 | C191: AREA DE ATENCION A LA CIUDADANIA | D191: E-MAIL | E191: DERECHO DE PETICION DE INTERES GENERAL | F191: Solucionado - Por traslado | G191: SECRETARIA DISTRITAL DE GOBIERNO | H191: GESTIONADO
B192: 5436782025 | C192: AREA DE ATENCION A LA CIUDADANIA | D192: WEB | E192: DERECHO DE PETICION DE INTERES GENERAL | F192: Solucionado - Por traslado | G192: SECRETARIA DISTRITAL DE GOBIERNO | H192: GESTIONADO
B193: 5437812025 | C193: AREA DE ATENCION A LA CIUDADANIA | D193: WEB | E193: DERECHO DE PETICION DE INTERES GENERAL | F193: Solucionado - Por traslado | G193: SECRETARIA DISTRITAL DE GOBIERNO | H193: GESTIONADO
B194: 5438922025 | C194: AREA DE ATENCION A LA CIUDADANIA | D194: E-MAIL | E194: DERECHO DE PETICION DE INTERES GENERAL | F194: Solucionado por asignar - Trasladar | G194: SECRETARIA DISTRITAL DE GOBIERNO | H194: GESTIONADO
B195: 5441202025 | C195: AREA DE ATENCION A LA CIUDADANIA | D195: WEB | E195: DERECHO DE PETICION DE INTERES GENERAL | F195: Solucionado - Por traslado | G195: SECRETARIA DISTRITAL DE GOBIERNO | H195: GESTIONADO
B196: 5442192025 | C196: AREA DE ATENCION A LA CIUDADANIA | D196: WEB | E196: SUGERENCIA | F196: Solucionado - Por traslado | G196: SECRETARIA DISTRITAL DE GOBIERNO | H196: GESTIONADO
B197: 5444852025 | C197: AREA DE ATENCION A LA CIUDADANIA | D197: E-MAIL | E197: DERECHO DE PETICION DE INTERES GENERAL | F197: Solucionado por asignar - Trasladar | G197: SECRETARIA DISTRITAL DE GOBIERNO | H197: GESTIONADO
B198: 5446092025 | C198: AREA DE ATENCION A LA CIUDADANIA | D198: E-MAIL | E198: DERECHO DE PETICION DE INTERES GENERAL | F198: Solucionado - Por traslado | G198: SECRETARIA DISTRITAL DE GOBIERNO | H198: GESTIONADO
B199: 5448072025 | C199: AREA DE ATENCION A LA CIUDADANIA | D199: E-MAIL | E199: DERECHO DE PETICION DE INTERES GENERAL | F199: Solucionado por asignar - Trasladar | G199: SECRETARIA DISTRITAL DE GOBIERNO | H199: GESTIONADO
B200: 5448352025 | C200: AREA DE ATENCION A LA CIUDADANIA | D200: E-MAIL | E200: DERECHO DE PETICION DE INTERES PARTICULAR | F200: Solucionado - Por traslado | G200: SECRETARIA DISTRITAL DE MOVILIDAD | H200: GESTIONADO
B201: 5448512025 | C201: AREA DE ATENCION A LA CIUDADANIA | D201: WEB | E201: DERECHO DE PETICION DE INTERES GENERAL | F201: Solucionado - Por traslado | G201: SECRETARIA DISTRITAL DE GOBIERNO | H201: GESTIONADO
B202: 5450732025 | C202: AREA DE ATENCION A LA CIUDADANIA | D202: WEB | E202: QUEJA | F202: Solucionado - Por traslado | G202: SECRETARIA DISTRITAL DE GOBIERNO | H202: GESTIONADO
B203: 5451432025 | C203: AREA DE ATENCION A LA CIUDADANIA | D203: WEB | E203: DERECHO DE PETICION DE INTERES GENERAL | F203: Solucionado - Por traslado | G203: SECRETARIA DISTRITAL DE AMBIENTE | H203: GESTIONADO
B204: 5452022025 | C204: AREA DE ATENCION A LA CIUDADANIA | D204: WEB | E204: DERECHO DE PETICION DE INTERES GENERAL | F204: Solucionado - Por traslado | G204: SECRETARIA DISTRITAL DE GOBIERNO | H204: GESTIONADO
B205: 5452302025 | C205: AREA DE ATENCION A LA CIUDADANIA | D205: WEB | E205: DERECHO DE PETICION DE INTERES GENERAL | F205: Solucionado - Por traslado | G205: SECRETARIA DISTRITAL DE AMBIENTE | H205: GESTIONADO
B206: 5453082025 | C206: AREA DE ATENCION A LA CIUDADANIA | D206: WEB | E206: DERECHO DE PETICION DE INTERES GENERAL | F206: Solucionado - Por traslado | G206: SECRETARIA DISTRITAL DE MOVILIDAD | H206: GESTIONADO
B207: 5464052025 | C207: AREA DE ATENCION A LA CIUDADANIA | D207: WEB | E207: DERECHO DE PETICION DE INTERES GENERAL | F207: Solucionado - Por traslado | G207: SECRETARIA DISTRITAL DE AMBIENTE | H207: GESTIONADO
B208: 5464072025 | C208: AREA DE ATENCION A LA CIUDADANIA | D208: WEB | E208: DERECHO DE PETICION DE INTERES PARTICULAR | F208: Solucionado - Por traslado | G208: SECRETARIA DISTRITAL DE AMBIENTE | H208: GESTIONADO
B209: 5464742025 | C209: AREA DE ATENCION A LA CIUDADANIA | D209: WEB | E209: DERECHO DE PETICION DE INTERES PARTICULAR | F209: Solucionado - Por traslado | G209: SECRETARIA DISTRITAL DE GOBIERNO | H209: GESTIONADO
B210: 5465772025 | C210: AREA DE ATENCION A LA CIUDADANIA | D210: WEB | E210: DERECHO DE PETICION DE INTERES PARTICULAR | F210: Solucionado - Por traslado | G210: EMPRESA METRO DE BOGOTA S.A. | H210: GESTIONADO
B211: 5466602025 | C211: AREA DE ATENCION A LA CIUDADANIA | D211: E-MAIL | E211: DERECHO DE PETICION DE INTERES GENERAL | F211: Solucionado - Por traslado | G211: INSTITUTO PARA LA ECONOMIA SOCIAL - IPES | H211: GESTIONADO
B212: 5467632025 | C212: AREA DE ATENCION A LA CIUDADANIA | D212: WEB | E212: DERECHO DE PETICION DE INTERES GENERAL | F212: Solucionado - Por traslado | G212: SECRETARIA DISTRITAL DE GOBIERNO | H212: GESTIONADO
B213: 5467712025 | C213: AREA DE ATENCION A LA CIUDADANIA | D213: WEB | E213: DERECHO DE PETICION DE INTERES GENERAL | F213: Solucionado - Por traslado | G213: SECRETARIA DISTRITAL DE GOBIERNO | H213: GESTIONADO
B214: 5468492025 | C214: AREA DE ATENCION A LA CIUDADANIA | D214: WEB | E214: DERECHO DE PETICION DE INTERES GENERAL | F214: Solucionado - Por traslado | G214: SECRETARIA DISTRITAL DE GOBIERNO | H214: GESTIONADO
B215: 5469562025 | C215: AREA DE ATENCION A LA CIUDADANIA | D215: WEB | E215: DERECHO DE PETICION DE INTERES GENERAL | F215: Solucionado - Por traslado | G215: SECRETARIA DISTRITAL DE GOBIERNO | H215: GESTIONADO
B216: 5470062025 | C216: AREA DE ATENCION A LA CIUDADANIA | D216: E-MAIL | E216: DERECHO DE PETICION DE INTERES GENERAL | F216: Solucionado - Por traslado | G216: SECRETARIA DISTRITAL DE GOBIERNO | H216: GESTIONADO
B217: 5471222025 | C217: AREA DE ATENCION A LA CIUDADANIA | D217: WEB | E217: DERECHO DE PETICION DE INTERES GENERAL | F217: Solucionado - Por traslado | G217: SECRETARIA DISTRITAL DE GOBIERNO | H217: GESTIONADO
... 333 more rows

Sheet Peticiones asignadas a la entid
B10: REPORTE GESTIÓN DE PETICIONES Fecha: 2025- 10- 01 a 2025 - 10 - 31 Estado de Petición: Al Periodo
B20: Número petición Numero de registro en el Sistema | C20: Dependencia: Nombre asociado al usuario que tiene a cargo la petición | D20: Canal: Nombre del canal parametrizado en el sistema por el cual fue registrada la petición | E20: Tipología actualizada: Tipo de documento utilizado por la entidad | F20: Días gestión Días calendario transcurridos desde la fecha de inicio de términos hasta el último día del mes | G20: Estado del Requerimiento "Gestionado" o "Pendiente" de respuesta definitiva por parte de la Defensoría del Espacio Público o de las entidades competentes
B21: 4577592025 | C21: SUBDIRECCION DE GESTION INMOBILIARIA Y DEL ESPACIO PUBLICO | D21: E-MAIL | E21: DERECHO DE PETICION DE INTERES PARTICULAR | F21: 12 | G21: PENDIENTE
B22: 4877752025 | C22: SUBDIRECCION DE GESTION INMOBILIARIA Y DEL ESPACIO PUBLICO | D22: WEB | E22: DERECHO DE PETICION DE INTERES PARTICULAR | F22: 14 | G22: GESTIONADO
B23: 5170292025 | C23: SUBDIRECCION DE GESTION INMOBILIARIA Y DEL ESPACIO PUBLICO | D23: ESCRITO | E23: DERECHO DE PETICION DE INTERES PARTICULAR | F23: 14 | G23: GESTIONADO
B24: 5209162025 | C24: SUBDIRECCION DE GESTION INMOBILIARIA Y DEL ESPACIO PUBLICO | D24: WEB | E24: CONSULTA | F24: 22 | G24: PENDIENTE
B25: 5229202025 | C25: SUBDIRECCION DE GESTION INMOBILIARIA Y DEL ESPACIO PUBLICO | D25: E-MAIL | E25: DERECHO DE PETICION DE INTERES PARTICULAR | F25: 14 | G25: GESTIONADO
B26: 5238322025 | C26: SUBDIRECCION DE GESTION INMOBILIARIA Y DEL ESPACIO PUBLICO | D26: E-MAIL | E26: DERECHO DE PETICION DE INTERES GENERAL | F26: 14 | G26: GESTIONADO
B27: 5272512025 | C27: SUBDIRECCION DE GESTION INMOBILIARIA Y DEL ESPACIO PUBLICO | D27: TELEFONO | E27: DERECHO DE PETICION DE INTERES GENERAL | F27: 15 | G27: GESTIONADO
B28: 5278242025 | C28: SUBDIRECCION DE REGISTRO INMOBILIARIO | D28: WEB | E28: CONSULTA | F28: 11 | G28: GESTIONADO
B29: 5306542025 | C29: SUBDIRECCION DE GESTION INMOBILIARIA Y DEL ESPACIO PUBLICO | D29: E-MAIL | E29: DERECHO DE PETICION DE INTERES GENERAL | F29: 14 | G29: GESTIONADO
B30: 5307522025 | C30: SUBDIRECCION DE GESTION INMOBILIARIA Y DEL ESPACIO PUBLICO | D30: E-MAIL | E30: DERECHO DE PETICION DE INTERES GENERAL | F30: 14 | G30: GESTIONADO
B31: 5325752025 | C31: SUBDIRECCION DE GESTION INMOBILIARIA Y DEL ESPACIO PUBLICO | D31: WEB | E31: DERECHO DE PETICION DE INTERES PARTICULAR | F31: 13 | G31: GESTIONADO
B32: 5331832025 | C32: SUBDIRECCION DE GESTION INMOBILIARIA Y DEL ESPACIO PUBLICO | D32: WEB | E32: SOLICITUD DE COPIA | F32: 10 | G32: GESTIONADO
B33: 5332452025 | C33: OFICINA DE CONTROL DISCIPLINARIO INTERNO | D33: WEB | E33: DERECHO DE PETICION DE INTERES GENERAL | F33: 1 | G33: GESTIONADO
B34: 5338412025 | C34: SUBDIRECCION DE GESTION INMOBILIARIA Y DEL ESPACIO PUBLICO | D34: E-MAIL | E34: DERECHO DE PETICION DE INTERES GENERAL | F34: 14 | G34: GESTIONADO
B35: 5351072025 | C35: SUBDIRECCION DE REGISTRO INMOBILIARIO | D35: WEB | E35: CONSULTA | F35: 6 | G35: GESTIONADO
B36: 5354752025 | C36: SUBDIRECCION DE GESTION INMOBILIARIA Y DEL ESPACIO PUBLICO | D36: E-MAIL | E36: DERECHO DE PETICION DE INTERES PARTICULAR | F36: 14 | G36: GESTIONADO
B37: 5369552025 | C37: SUBDIRECCION DE GESTION INMOBILIARIA Y DEL ESPACIO PUBLICO | D37: WEB | E37: DERECHO DE PETICION DE INTERES PARTICULAR | F37: 13 | G37: GESTIONADO
B38: 5382602025 | C38: OFICINA DE CONTROL DISCIPLINARIO INTERNO | D38: WEB | E38: DERECHO DE PETICION DE INTERES GENERAL | F38: 1 | G38: GESTIONADO
B39: 5385002025 | C39: OFICINA DE CONTROL DISCIPLINARIO INTERNO | D39: WEB | E39: DERECHO DE PETICION DE INTERES GENERAL | F39: 1 | G39: GESTIONADO
B40: 5400572025 | C40: SUBDIRECCION DE GESTION INMOBILIARIA Y DEL ESPACIO PUBLICO | D40: PRESENCIAL | E40: DERECHO DE PETICION DE INTERES GENERAL | F40: 15 | G40: GESTIONADO
B41: 5402462025 | C41: SUBDIRECCION DE GESTION INMOBILIARIA Y DEL ESPACIO PUBLICO | D41: E-MAIL | E41: DERECHO DE PETICION DE INTERES GENERAL | F41: 15 | G41: GESTIONADO
B42: 5412172025 | C42: SUBDIRECCION DE GESTION INMOBILIARIA Y DEL ESPACIO PUBLICO | D42: E-MAIL | E42: DERECHO DE PETICION DE INTERES GENERAL | F42: 15 | G42: GESTIONADO
B43: 5416192025 | C43: SUBDIRECCION DE GESTION INMOBILIARIA Y DEL ESPACIO PUBLICO | D43: E-MAIL | E43: DERECHO DE PETICION DE INTERES GENERAL | F43: 14 | G43: GESTIONADO
B44: 5417362025 | C44: SUBDIRECCION DE GESTION INMOBILIARIA Y DEL ESPACIO PUBLICO | D44: E-MAIL | E44: DERECHO DE PETICION DE INTERES GENERAL | F44: 14 | G44: GESTIONADO
B45: 5420212025 | C45: SUBDIRECCION DE GESTION INMOBILIARIA Y DEL ESPACIO PUBLICO | D45: WEB | E45: DERECHO DE PETICION DE INTERES GENERAL | F45: 14 | G45: GESTIONADO
B46: 5438922025 | C46: SUBDIRECCION DE GESTION INMOBILIARIA Y DEL ESPACIO PUBLICO | D46: E-MAIL | E46: DERECHO DE PETICION DE INTERES GENERAL | F46: 14 | G46: GESTIONADO
B47: 5444852025 | C47: SUBDIRECCION DE GESTION INMOBILIARIA Y DEL ESPACIO PUBLICO | D47: E-MAIL | E47: DERECHO DE PETICION DE INTERES GENERAL | F47: 15 | G47: GESTIONADO
B48: 5448072025 | C48: SUBDIRECCION DE GESTION INMOBILIARIA Y DEL ESPACIO PUBLICO | D48: E-MAIL | E48: DERECHO DE PETICION DE INTERES GENERAL | F48: 15 | G48: GESTIONADO
B49: 5450442025 | C49: SUBDIRECCION DE REGISTRO INMOBILIARIO | D49: E-MAIL | E49: DERECHO DE PETICION DE INTERES PARTICULAR | F49: 6 | G49: GESTIONADO
B50: 5473292025 | C50: SUBDIRECCION DE GESTION INMOBILIARIA Y DEL ESPACIO PUBLICO | D50: WEB | E50: CONSULTA | F50: 14 | G50: PENDIENTE
B51: 5474292025 | C51: SUBDIRECCION DE GESTION INMOBILIARIA Y DEL ESPACIO PUBLICO | D51: E-MAIL | E51: DERECHO DE PETICION DE INTERES GENERAL | F51: 14 | G51: GESTIONADO
B52: 5475772025 | C52: SUBDIRECCION DE GESTION INMOBILIARIA Y DEL ESPACIO PUBLICO | D52: E-MAIL | E52: DERECHO DE PETICION DE INTERES GENERAL | F52: 14 | G52: GESTIONADO
B53: 5476452025 | C53: SUBDIRECCION DE GESTION INMOBILIARIA Y DEL ESPACIO PUBLICO | D53: WEB | E53: CONSULTA | F53: 14 | G53: PENDIENTE
B54: 5516782025 | C54: SUBDIRECCION DE GESTION CORPORATIVA | D54: E-MAIL | E54: DERECHO DE PETICION DE INTERES GENERAL | F54: 13 | G54: PENDIENTE
B55: 5521572025 | C55: SUBDIRECCION DE GESTION INMOBILIARIA Y DEL ESPACIO PUBLICO | D55: WEB | E55: DERECHO DE PETICION DE INTERES GENERAL | F55: 11 | G55: PENDIENTE
B56: 5521952025 | C56: OFICINA DE CONTROL DISCIPLINARIO INTERNO | D56: WEB | E56: DERECHO DE PETICION DE INTERES GENERAL | F56: 2 | G56: PENDIENTE
B57: 5544872025 | C57: SUBDIRECCION DE GESTION INMOBILIARIA Y DEL ESPACIO PUBLICO | D57: E-MAIL | E57: DERECHO DE PETICION DE INTERES GENERAL | F57: 12 | G57: PENDIENTE
B58: 5548972025 | C58: SUBDIRECCION DE GESTION INMOBILIARIA Y DEL ESPACIO PUBLICO | D58: E-MAIL | E58: DERECHO DE PETICION DE INTERES GENERAL | F58: 14 | G58: GESTIONADO
B59: 5549592025 | C59: SUBDIRECCION DE GESTION INMOBILIARIA Y DEL ESPACIO PUBLICO | D59: E-MAIL | E59: DERECHO DE PETICION DE INTERES GENERAL | F59: 12 | G59: PENDIENTE
B60: 5550132025 | C60: SUBDIRECCION DE GESTION INMOBILIARIA Y DEL ESPACIO PUBLICO | D60: E-MAIL | E60: DERECHO DE PETICION DE INTERES GENERAL | F60: 13 | G60: PENDIENTE
B61: 5550842025 | C61: OFICINA DE CONTROL DISCIPLINARIO INTERNO | D61: WEB | E61: DERECHO DE PETICION DE INTERES GENERAL | F61: 1 | G61: GESTIONADO
B62: 5556142025 | C62: SUBDIRECCION DE GESTION INMOBILIARIA Y DEL ESPACIO PUBLICO | D62: E-MAIL | E62: DERECHO DE PETICION DE INTERES GENERAL | F62: 12 | G62: PENDIENTE
B63: 5562532025 | C63: SUBDIRECCION DE GESTION INMOBILIARIA Y DEL ESPACIO PUBLICO | D63: WEB | E63: DERECHO DE PETICION DE INTERES PARTICULAR | F63: 12 | G63: PENDIENTE
B64: 5566402025 | C64: OFICINA DE CONTROL DISCIPLINARIO INTERNO | D64: WEB | E64: DERECHO DE PETICION DE INTERES GENERAL | F64: 1 | G64: GESTIONADO
B65: 5584462025 | C65: SUBDIRECCION DE GESTION INMOBILIARIA Y DEL ESPACIO PUBLICO | D65: E-MAIL | E65: DERECHO DE PETICION DE INTERES GENERAL | F65: 11 | G65: PENDIENTE
B66: 5586962025 | C66: OFICINA DE CONTROL DISCIPLINARIO INTERNO | D66: WEB | E66: DERECHO DE PETICION DE INTERES GENERAL | F66: 1 | G66: GESTIONADO
B67: 5593432025 | C67: SUBDIRECCION DE GESTION INMOBILIARIA Y DEL ESPACIO PUBLICO | D67: E-MAIL | E67: DERECHO DE PETICION DE INTERES GENERAL | F67: 11 | G67: PENDIENTE
B68: 5601192025 | C68: SUBDIRECCION DE GESTION INMOBILIARIA Y DEL ESPACIO PUBLICO | D68: E-MAIL | E68: DERECHO DE PETICION DE INTERES GENERAL | F68: 3 | G68: PENDIENTE
B69: 5620762025 | C69: SUBDIRECCION DE GESTION INMOBILIARIA Y DEL ESPACIO PUBLICO | D69: WEB | E69: DERECHO DE PETICION DE INTERES GENERAL | F69: 10 | G69: PENDIENTE
B70: 5620782025 | C70: SUBDIRECCION DE GESTION INMOBILIARIA Y DEL ESPACIO PUBLICO | D70: WEB | E70: DERECHO DE PETICION DE INTERES GENERAL | F70: 10 | G70: PENDIENTE
B71: 5630642025 | C71: OFICINA JURIDICA | D71: E-MAIL | E71: DERECHO DE PETICION DE INTERES PARTICULAR | F71: 4 | G71: GESTIONADO
B72: 5634322025 | C72: SUBDIRECCION DE GESTION INMOBILIARIA Y DEL ESPACIO PUBLICO | D72: ESCRITO | E72: DERECHO DE PETICION DE INTERES PARTICULAR | F72: 10 | G72: PENDIENTE
B73: 5636482025 | C73: SUBDIRECCION DE GESTION INMOBILIARIA Y DEL ESPACIO PUBLICO | D73: E-MAIL | E73: DERECHO DE PETICION DE INTERES PARTICULAR | F73: 10 | G73: PENDIENTE
B74: 5637272025 | C74: OFICINA DE CONTROL DISCIPLINARIO INTERNO | D74: WEB | E74: DERECHO DE PETICION DE INTERES GENERAL | F74: 1 | G74: GESTIONADO
B75: 5649712025 | C75: OFICINA DE CONTROL DISCIPLINARIO INTERNO | D75: WEB | E75: DERECHO DE PETICION DE INTERES GENERAL | F75: 1 | G75: GESTIONADO
B76: 5660822025 | C76: SUBDIRECCION DE GESTION INMOBILIARIA Y DEL ESPACIO PUBLICO | D76: E-MAIL | E76: CONSULTA | F76: 9 | G76: PENDIENTE
B77: 5662882025 | C77: OFICINA DE CONTROL DISCIPLINARIO INTERNO | D77: WEB | E77: DERECHO DE PETICION DE INTERES GENERAL | F77: 1 | G77: GESTIONADO
B78: 5665602025 | C78: SUBDIRECCION DE GESTION INMOBILIARIA Y DEL ESPACIO PUBLICO | D78: PRESENCIAL | E78: DERECHO DE PETICION DE INTERES GENERAL | F78: 11 | G78: PENDIENTE
B79: 5665762025 | C79: OFICINA JURIDICA | D79: E-MAIL | E79: CONSULTA | F79: 8 | G79: PENDIENTE
B80: 5668642025 | C80: SUBDIRECCION DE GESTION INMOBILIARIA Y DEL ESPACIO PUBLICO | D80: E-MAIL | E80: DERECHO DE PETICION DE INTERES GENERAL | F80: 9 | G80: PENDIENTE
B81: 5669712025 | C81: OFICINA JURIDICA | D81: ESCRITO | E81: CONSULTA | F81: 8 | G81: PENDIENTE
B82: 5678672025 | C82: SUBDIRECCION DE GESTION INMOBILIARIA Y DEL ESPACIO PUBLICO | D82: WEB | E82: RECLAMO | F82: 9 | G82: PENDIENTE
B83: 5692232025 | C83: SUBDIRECCION DE GESTION INMOBILIARIA Y DEL ESPACIO PUBLICO | D83: E-MAIL | E83: DERECHO DE PETICION DE INTERES PARTICULAR | F83: 8 | G83: PENDIENTE
B84: 5694602025 | C84: SUBDIRECCION DE GESTION INMOBILIARIA Y DEL ESPACIO PUBLICO | D84: E-MAIL | E84: DERECHO DE PETICION DE INTERES GENERAL | F84: 7 | G84: PENDIENTE
B85: 5696162025 | C85: SUBDIRECCION DE GESTION INMOBILIARIA Y DEL ESPACIO PUBLICO | D85: E-MAIL | E85: DERECHO DE PETICION DE INTERES GENERAL | F85: 8 | G85: PENDIENTE
B86: 5704862025 | C86: SUBDIRECCION DE GESTION INMOBILIARIA Y DEL ESPACIO PUBLICO | D86: E-MAIL | E86: DERECHO DE PETICION DE INTERES GENERAL | F86: 8 | G86: PENDIENTE
B87: 5707252025 | C87: SUBDIRECCION DE GESTION INMOBILIARIA Y DEL ESPACIO PUBLICO | D87: WEB | E87: CONSULTA | F87: 8 | G87: PENDIENTE
B88: 5712792025 | C88: SUBDIRECCION DE GESTION INMOBILIARIA Y DEL ESPACIO PUBLICO | D88: WEB | E88: CONSULTA | F88: 8 | G88: PENDIENTE
B89: 5715182025 | C89: OFICINA DE CONTROL DISCIPLINARIO INTERNO | D89: WEB | E89: DERECHO DE PETICION DE INTERES PARTICULAR | F89: 1 | G89: GESTIONADO
B90: 5726502025 | C90: SUBDIRECCION DE GESTION INMOBILIARIA Y DEL ESPACIO PUBLICO | D90: E-MAIL | E90: DERECHO DE PETICION DE INTERES GENERAL | F90: 7 | G90: PENDIENTE
B91: 5734842025 | C91: OFICINA JURIDICA | D91: E-MAIL | E91: CONSULTA | F91: 7 | G91: PENDIENTE
B92: 5735082025 | C92: OFICINA JURIDICA | D92: E-MAIL | E92: CONSULTA | F92: 7 | G92: PENDIENTE
B93: 5738532025 | C93: OFICINA JURIDICA | D93: E-MAIL | E93: CONSULTA | F93: 7 | G93: PENDIENTE
B94: 5766262025 | C94: OFICINA JURIDICA | D94: WEB | E94: SOLICITUD DE COPIA | F94: 6 | G94: PENDIENTE
B95: 5769032025 | C95: SUBDIRECCION DE GESTION INMOBILIARIA Y DEL ESPACIO PUBLICO | D95: WEB | E95: CONSULTA | F95: 4 | G95: PENDIENTE
B96: 5774832025 | C96: SUBDIRECCION DE GESTION INMOBILIARIA Y DEL ESPACIO PUBLICO | D96: WEB | E96: SUGERENCIA | F96: 6 | G96: PENDIENTE
B97: 5775912025 | C97: SUBDIRECCION DE GESTION INMOBILIARIA Y DEL ESPACIO PUBLICO | D97: WEB | E97: CONSULTA | F97: 6 | G97: PENDIENTE
B98: 5789102025 | C98: SUBDIRECCION DE GESTION INMOBILIARIA Y DEL ESPACIO PUBLICO | D98: E-MAIL | E98: DERECHO DE PETICION DE INTERES GENERAL | F98: 5 | G98: PENDIENTE
B99: 5790592025 | C99: SUBDIRECCION DE GESTION INMOBILIARIA Y DEL ESPACIO PUBLICO | D99: E-MAIL | E99: DERECHO DE PETICION DE INTERES GENERAL | F99: 5 | G99: PENDIENTE
B100: 5792562025 | C100: SUBDIRECCION DE GESTION INMOBILIARIA Y DEL ESPACIO PUBLICO | D100: E-MAIL | E100: DERECHO DE PETICION DE INTERES GENERAL | F100: 5 | G100: PENDIENTE
B101: 5794832025 | C101: OFICINA DE CONTROL DISCIPLINARIO INTERNO | D101: BUZON | E101: DERECHO DE PETICION DE INTERES PARTICULAR | F101: 5 | G101: PENDIENTE
B102: 5801432025 | C102: OFICINA JURIDICA | D102: WEB | E102: SOLICITUD DE ACCESO A LA INFORMACION | F102: 4 | G102: PENDIENTE
B103: 5813242025 | C103: SUBDIRECCION DE GESTION INMOBILIARIA Y DEL ESPACIO PUBLICO | D103: WEB | E103: DERECHO DE PETICION DE INTERES GENERAL | F103: 5 | G103: PENDIENTE
B104: 5822612025 | C104: SUBDIRECCION DE GESTION INMOBILIARIA Y DEL ESPACIO PUBLICO | D104: E-MAIL | E104: DERECHO DE PETICION DE INTERES GENERAL | F104: 4 | G104: PENDIENTE
B105: 5823302025 | C105: OFICINA DE CONTROL DISCIPLINARIO INTERNO | D105: E-MAIL | E105: DERECHO DE PETICION DE INTERES GENERAL | F105: 1 | G105: PENDIENTE
B106: 5834292025 | C106: SUBDIRECCION DE GESTION INMOBILIARIA Y DEL ESPACIO PUBLICO | D106: E-MAIL | E106: DERECHO DE PETICION DE INTERES PARTICULAR | F106: 4 | G106: PENDIENTE
B107: 5839142025 | C107: SUBDIRECCION DE REGISTRO INMOBILIARIO | D107: WEB | E107: DERECHO DE PETICION DE INTERES PARTICULAR | F107: 4 | G107: PENDIENTE
B108: 5864852025 | C108: OFICINA DE CONTROL DISCIPLINARIO INTERNO | D108: WEB | E108: DERECHO DE PETICION DE INTERES GENERAL | F108: 2 | G108: PENDIENTE
B109: 5865892025 | C109: SUBDIRECCION DE GESTION INMOBILIARIA Y DEL ESPACIO PUBLICO | D109: WEB | E109: DERECHO DE PETICION DE INTERES PARTICULAR | F109: 3 | G109: PENDIENTE
B110: 5871462025 | C110: SUBDIRECCION DE GESTION INMOBILIARIA Y DEL ESPACIO PUBLICO | D110: WEB | E110: DERECHO DE PETICION DE INTERES PARTICULAR | F110: 2 | G110: PENDIENTE
B111: 5874142025 | C111: SUBDIRECCION DE GESTION INMOBILIARIA Y DEL ESPACIO PUBLICO | D111: WEB | E111: DERECHO DE PETICION DE INTERES PARTICULAR | F111: 3 | G111: PENDIENTE
B112: 5888282025 | C112: SUBDIRECCION DE GESTION INMOBILIARIA Y DEL ESPACIO PUBLICO | D112: E-MAIL | E112: DERECHO DE PETICION DE INTERES GENERAL | F112: 2 | G112: PENDIENTE
B113: 5893692025 | C113: SUBDIRECCION DE REGISTRO INMOBILIARIO | D113: E-MAIL | E113: CONSULTA | F113: 1 | G113: PENDIENTE
B114: 5913682025 | C114: OFICINA JURIDICA | D114: E-MAIL | E114: CONSULTA | F114: 1 | G114: PENDIENTE
B115: 5923752025 | C115: SUBDIRECCION DE GESTION INMOBILIARIA Y DEL ESPACIO PUBLICO | D115: E-MAIL | E115: DERECHO DE PETICION DE INTERES GENERAL | F115: 1 | G115: PENDIENTE
B116: 5927772025 | C116: SUBDIRECCION DE GESTION INMOBILIARIA Y DEL ESPACIO PUBLICO | D116: E-MAIL | E116: DERECHO DE PETICION DE INTERES PARTICULAR | F116: 1 | G116: PENDIENTE
B117: 5933242025 | C117: SUBDIRECCION DE REGISTRO INMOBILIARIO | D117: WEB | E117: CONSULTA | F117: 1 | G117: PENDIENTE
B118: 5940382025 | C118: SUBDIRECCION DE GESTION INMOBILIARIA Y DEL ESPACIO PUBLICO | D118: E-MAIL | E118: DERECHO DE PETICION DE INTERES GENERAL | F118: 1 | G118: PENDIENTE
B119: 5946932025 | C119: SUBDIRECCION DE GESTION INMOBILIARIA Y DEL ESPACIO PUBLICO | D119: E-MAIL | E119: DERECHO DE PETICION DE INTERES PARTICULAR | F119: 1 | G119: PENDIENTE

Sheet Peticiones ciudadanas por tema
B14: Dependencia | C14: Tema de la petición | D14: cantidad | F14: En el cuadro se presenta el TOP 5 por dependencia, de los temas mas frecuentes asociados a los trámites y servicios en las PQRS presentadas por la ciudadanía, durante el periodo en estudio y asignadas a la entidad, registrados en el formato 127- FORAC-19 establecido en el Sistema de Gestión Institucional.
B15: AREA DE ATENCION A LA CIUDADANIA | C15: Competencia otras entidades | D15: 618
C16: Certificación de la propiedad inmobiliaria | D16: 22
C17: Asesoría en temas de espacio público | D17: 22
C18: Peticiones entre entidades | D18: 14
C19: Sin información de fondo | D19: 13
B20: OFICINA DE CONTROL DISCIPLINARIO INTERNO | C20: Competencia otras entidades | D20: 11
C21: Desempeño de la entidad | D21: 3
C22: Asuntos disciplinarios | D22: 1
C23: Asesoría en temas de espacio público | D23: 1
B24: SUBDIRECCION DE REGISTRO INMOBILIARIO | C24: Desempeño de la entidad | D24: 4
C25: Copia de acta | D25: 1
C26: Solicitud de copia | D26: 1
B27: SUBDIRECCION DE GESTION INMOBILIARIA Y DEL ESPACIO PUBLICO | C27: Asesoría en temas de espacio público | D27: 25
C28: Desempeño de la entidad | D28: 25
C29: Competencia otras entidades | D29: 13
C30: Mantenimiento mobiliario urbano (paraderos y bancas) | D30: 1
C31: Copia de acta | D31: 1
C32: Certificación de la propiedad inmobiliaria | D32: 1
C33: Instalación de mobiliario urbano | D33: 1
C34: Bogotá a Cielo Abierto BACA 2.0 - Viabilidad Decreto 070 / 2022 | D34: 1
B35: OFICINA JURIDICA | C35: Desempeño de la entidad | D35: 6
C36: Solicitud de copia | D36: 1
C37: Asuntos Jurídicos | D37: 1
B38: Nota: De conformidad con el Decreto Distrital 478 del 25 de octubre de 2022 “Por medio del cual modifica la planta de empleos del Departamento Administrativo de la Defensoría del Espacio Público”, se hace necesario modificó y creó algunos nombres de las dependencias, el trámite se encuentra en proceso de ajuste dentro del Sistema Bogotá Te Escucha: • Despacho se denominó Dirección • Subdirección Administrativa y Financiera y de Control Disciplinario se denonimó Oficina de Control Disciplinario Interno • Oficina de Sistemas se denominó Oficina de Tecnologías de la Información y las Comunicaciones • Subdirección de Administración Inmobiliaria y de Espacio Publico se denominó Subdirección de Gestión Inmobiliaria y del Espacio Publico • Subdirección Administrativa y Financiera se denominó Subdirección de Gestión Corporativa • Se creó Oficina Asesora de Comunicaciones

Sheet Recomendaciones a la ciudadanía
B11: Se recomienda a la ciudadanía y a otras entidades del distrito, para el registro y/o asignación de peticiones, Quejas, Reclamos o Sugerencias-PQRS tener en cuenta la competencia en materia de recuperación de espacio público y el alcance de las competencias del DADEP. Lo anterior para evitar los traslados entre entidades y así mejorar la oportunidad de las respuestas de conformidad con los términos de Ley.
K13: Preguntas frecuentes

Sheet para pqr (hidden)
A1: REGISTRADAS Y RECIBIDAS
A2: Número petición Numero de registro en el Sistema | B2: Dependencia: Nombre asociado al usuario que tiene a cargo la petición | C2: Canal: Nombre del canal parametrizado en el sistema por el cual fue registrada la petición | D2: Tipología actualizada: Tipo de documento utilizado por la entidad | E2: Días gestión Días calendario transcurridos desde la fecha de inicio de términos hasta el último día del mes | F2: Estado del Requerimiento "Gestionado" o "Pendiente" de respuesta definitiva por parte de la Defensoría del Espacio Público o de las entidades competentes
A3: Número petición | B3: Dependencia | C3: Canal | D3: Tipo petición | E3: Días gestión | F3: Tipo reporte
A4: 2024192021 | B4: AREA DE ATENCION A LA CIUDADANIA | C4: WEB | D4: DERECHO DE PETICION DE INTERES GENERAL | E4: 86 | F4: GESTIONADOS
A5: 2842242021 | B5: SUBDIRECCION DE REGISTRO INMOBILIARIO | C5: ESCRITO | D5: DERECHO DE PETICION DE INTERES PARTICULAR | E5: 23 | F5: GESTIONADOS
A6: 2861072021 | B6: SUBDIRECCION DE ADMINISTRACION INMOBILIARIA Y DE ESPACIO PUBLICO | C6: WEB | D6: DERECHO DE PETICION DE INTERES GENERAL | E6: 26 | F6: GESTIONADOS
A7: 2950712021 | B7: SUBDIRECCION DE REGISTRO INMOBILIARIO | C7: WEB | D7: DERECHO DE PETICION DE INTERES GENERAL | E7: 24 | F7: GESTIONADOS
A8: 2991912021 | B8: SUBDIRECCION DE REGISTRO INMOBILIARIO | C8: WEB | D8: CONSULTA | E8: 34 | F8: GESTIONADOS
A9: 2993652021 | B9: AREA DE ATENCION A LA CIUDADANIA | C9: WEB | D9: DERECHO DE PETICION DE INTERES PARTICULAR | E9: 1 | F9: GESTIONADOS
A10: 2998152021 | B10: AREA DE ATENCION A LA CIUDADANIA | C10: ESCRITO | D10: DERECHO DE PETICION DE INTERES PARTICULAR | E10: 29 | F10: GESTIONADOS
A11: 2998262021 | B11: SUBDIRECCION DE ADMINISTRACION INMOBILIARIA Y DE ESPACIO PUBLICO | C11: ESCRITO | D11: DERECHO DE PETICION DE INTERES PARTICULAR | E11: 29 | F11: GESTIONADOS
A12: 2999072021 | B12: SUBDIRECCION DE REGISTRO INMOBILIARIO | C12: ESCRITO | D12: DERECHO DE PETICION DE INTERES PARTICULAR | E12: 29 | F12: GESTIONADOS
A13: 3015422021 | B13: AREA DE ATENCION A LA CIUDADANIA | C13: ESCRITO | D13: SOLICITUD DE COPIA | E13: 29 | F13: GESTIONADOS
A14: 3015422021 | B14: SUBDIRECCION DE ADMINISTRACION INMOBILIARIA Y DE ESPACIO PUBLICO | C14: ESCRITO | D14: SOLICITUD DE COPIA | E14: 29 | F14: GESTIONADOS
A15: 3015422021 | B15: SUBDIRECCION DE REGISTRO INMOBILIARIO | C15: ESCRITO | D15: SOLICITUD DE COPIA | E15: 30 | F15: GESTIONADOS
A16: 3033252021 | B16: AREA DE ATENCION A LA CIUDADANIA | C16: E-MAIL | D16: DERECHO DE PETICION DE INTERES GENERAL | E16: 1 | F16: GESTIONADOS
A17: 3057872021 | B17: SUBDIRECCION DE ADMINISTRACION INMOBILIARIA Y DE ESPACIO PUBLICO | C17: WEB | D17: DERECHO DE PETICION DE INTERES GENERAL | E17: 27 | F17: GESTIONADOS
A18: 3058842021 | B18: SUBDIRECCION DE ADMINISTRACION INMOBILIARIA Y DE ESPACIO PUBLICO | C18: ESCRITO | D18: DERECHO DE PETICION DE INTERES PARTICULAR | E18: 27 | F18: GESTIONADOS
A19: 3066402021 | B19: SUBDIRECCION DE ADMINISTRACION INMOBILIARIA Y DE ESPACIO PUBLICO | C19: ESCRITO | D19: DERECHO DE PETICION DE INTERES PARTICULAR | E19: 27 | F19: GESTIONADOS
A20: 3066402021 | B20: SUBDIRECCION DE REGISTRO INMOBILIARIO | C20: ESCRITO | D20: DERECHO DE PETICION DE INTERES PARTICULAR | E20: 29 | F20: GESTIONADOS
A21: 3067332021 | B21: SUBDIRECCION DE ADMINISTRACION INMOBILIARIA Y DE ESPACIO PUBLICO | C21: ESCRITO | D21: DERECHO DE PETICION DE INTERES PARTICULAR | E21: 27 | F21: GESTIONADOS
A22: 3067362021 | B22: SUBDIRECCION DE ADMINISTRACION INMOBILIARIA Y DE ESPACIO PUBLICO | C22: ESCRITO | D22: DERECHO DE PETICION DE INTERES PARTICULAR | E22: 27 | F22: GESTIONADOS
A23: 3067402021 | B23: SUBDIRECCION DE ADMINISTRACION INMOBILIARIA Y DE ESPACIO PUBLICO | C23: ESCRITO | D23: DERECHO DE PETICION DE INTERES PARTICULAR | E23: 27 | F23: GESTIONADOS
A24: 3067802021 | B24: SUBDIRECCION DE ADMINISTRACION INMOBILIARIA Y DE ESPACIO PUBLICO | C24: ESCRITO | D24: DERECHO DE PETICION DE INTERES PARTICULAR | E24: 27 | F24: GESTIONADOS
A25: 3071582021 | B25: SUBDIRECCION DE REGISTRO INMOBILIARIO | C25: ESCRITO | D25: DERECHO DE PETICION DE INTERES PARTICULAR | E25: 30 | F25: GESTIONADOS
A26: 3071972021 | B26: SUBDIRECCION DE ADMINISTRACION INMOBILIARIA Y DE ESPACIO PUBLICO | C26: ESCRITO | D26: DERECHO DE PETICION DE INTERES PARTICULAR | E26: 26 | F26: GESTIONADOS
A27: 3072662021 | B27: SUBDIRECCION DE ADMINISTRACION INMOBILIARIA Y DE ESPACIO PUBLICO | C27: ESCRITO | D27: DERECHO DE PETICION DE INTERES PARTICULAR | E27: 26 | F27: GESTIONADOS
A28: 3074242021 | B28: SUBDIRECCION DE ADMINISTRACION INMOBILIARIA Y DE ESPACIO PUBLICO | C28: ESCRITO | D28: DERECHO DE PETICION DE INTERES PARTICULAR | E28: 28 | F28: GESTIONADOS
A29: 3074292021 | B29: SUBDIRECCION DE ADMINISTRACION INMOBILIARIA Y DE ESPACIO PUBLICO | C29: WEB | D29: DERECHO DE PETICION DE INTERES PARTICULAR | E29: 26 | F29: GESTIONADOS
A30: 3074602021 | B30: SUBDIRECCION DE ADMINISTRACION INMOBILIARIA Y DE ESPACIO PUBLICO | C30: WEB | D30: DERECHO DE PETICION DE INTERES PARTICULAR | E30: 25 | F30: GESTIONADOS
A31: 3075822021 | B31: SUBDIRECCION DE ADMINISTRACION INMOBILIARIA Y DE ESPACIO PUBLICO | C31: WEB | D31: CONSULTA | E31: 29 | F31: GESTIONADOS
A32: 3085172021 | B32: SUBDIRECCION DE ADMINISTRACION INMOBILIARIA Y DE ESPACIO PUBLICO | C32: WEB | D32: CONSULTA | E32: 29 | F32: GESTIONADOS
A33: 3086572021 | B33: AREA DE ATENCION A LA CIUDADANIA | C33: WEB | D33: DERECHO DE PETICION DE INTERES PARTICULAR | E33: 28 | F33: GESTIONADOS
A34: 3086572021 | B34: SUBDIRECCION ADMINISTRATIVA FINANCIERA Y DE CONTROL DISCIPLINARIO | C34: WEB | D34: DERECHO DE PETICION DE INTERES PARTICULAR | E34: 28 | F34: GESTIONADOS
A35: 3086572021 | B35: SUBDIRECCION DE ADMINISTRACION INMOBILIARIA Y DE ESPACIO PUBLICO | C35: WEB | D35: DERECHO DE PETICION DE INTERES PARTICULAR | E35: 26 | F35: GESTIONADOS
A36: 3086962021 | B36: SUBDIRECCION DE ADMINISTRACION INMOBILIARIA Y DE ESPACIO PUBLICO | C36: WEB | D36: DERECHO DE PETICION DE INTERES GENERAL | E36: 26 | F36: GESTIONADOS
A37: 3089232021 | B37: SUBDIRECCION DE ADMINISTRACION INMOBILIARIA Y DE ESPACIO PUBLICO | C37: WEB | D37: DERECHO DE PETICION DE INTERES GENERAL | E37: 27 | F37: PENDIENTE
A38: 3089252021 | B38: SUBDIRECCION DE ADMINISTRACION INMOBILIARIA Y DE ESPACIO PUBLICO | C38: WEB | D38: DERECHO DE PETICION DE INTERES GENERAL | E38: 27 | F38: GESTIONADOS
A39: 3090522021 | B39: SUBDIRECCION DE ADMINISTRACION INMOBILIARIA Y DE ESPACIO PUBLICO | C39: WEB | D39: QUEJA | E39: 26 | F39: GESTIONADOS
A40: 3090862021 | B40: SUBDIRECCION DE ADMINISTRACION INMOBILIARIA Y DE ESPACIO PUBLICO | C40: WEB | D40: DERECHO DE PETICION DE INTERES GENERAL | E40: 26 | F40: GESTIONADOS
A41: 3091092021 | B41: SUBDIRECCION DE ADMINISTRACION INMOBILIARIA Y DE ESPACIO PUBLICO | C41: WEB | D41: DERECHO DE PETICION DE INTERES GENERAL | E41: 26 | F41: GESTIONADOS
A42: 3096512021 | B42: SUBDIRECCION DE ADMINISTRACION INMOBILIARIA Y DE ESPACIO PUBLICO | C42: ESCRITO | D42: DERECHO DE PETICION DE INTERES PARTICULAR | E42: 25 | F42: GESTIONADOS
A43: 3096512021 | B43: SUBDIRECCION DE REGISTRO INMOBILIARIO | C43: ESCRITO | D43: DERECHO DE PETICION DE INTERES PARTICULAR | E43: 28 | F43: GESTIONADOS
A44: 3097292021 | B44: SUBDIRECCION DE ADMINISTRACION INMOBILIARIA Y DE ESPACIO PUBLICO | C44: ESCRITO | D44: DERECHO DE PETICION DE INTERES PARTICULAR | E44: 25 | F44: GESTIONADOS
A45: 3097332021 | B45: SUBDIRECCION DE ADMINISTRACION INMOBILIARIA Y DE ESPACIO PUBLICO | C45: ESCRITO | D45: DERECHO DE PETICION DE INTERES PARTICULAR | E45: 26 | F45: GESTIONADOS
A46: 3097432021 | B46: AREA DE ATENCION A LA CIUDADANIA | C46: ESCRITO | D46: DERECHO DE PETICION DE INTERES PARTICULAR | E46: 35 | F46: GESTIONADOS
A47: 3097432021 | B47: SUBDIRECCION DE ADMINISTRACION INMOBILIARIA Y DE ESPACIO PUBLICO | C47: ESCRITO | D47: DERECHO DE PETICION DE INTERES PARTICULAR | E47: 29 | F47: GESTIONADOS
A48: 3097522021 | B48: SUBDIRECCION DE ADMINISTRACION INMOBILIARIA Y DE ESPACIO PUBLICO | C48: WEB | D48: DERECHO DE PETICION DE INTERES PARTICULAR | E48: 26 | F48: GESTIONADOS
A49: 3097762021 | B49: SUBDIRECCION DE REGISTRO INMOBILIARIO | C49: ESCRITO | D49: DERECHO DE PETICION DE INTERES PARTICULAR | E49: 27 | F49: GESTIONADOS
A50: 3098382021 | B50: SUBDIRECCION DE ADMINISTRACION INMOBILIARIA Y DE ESPACIO PUBLICO | C50: WEB | D50: DERECHO DE PETICION DE INTERES GENERAL | E50: 24 | F50: GESTIONADOS
A51: 3099322021 | B51: SUBDIRECCION DE REGISTRO INMOBILIARIO | C51: ESCRITO | D51: DERECHO DE PETICION DE INTERES PARTICULAR | E51: 26 | F51: GESTIONADOS
A52: 3100742021 | B52: SUBDIRECCION DE ADMINISTRACION INMOBILIARIA Y DE ESPACIO PUBLICO | C52: WEB | D52: DERECHO DE PETICION DE INTERES GENERAL | E52: 24 | F52: GESTIONADOS
A53: 3102452021 | B53: SUBDIRECCION DE REGISTRO INMOBILIARIO | C53: ESCRITO | D53: DERECHO DE PETICION DE INTERES PARTICULAR | E53: 28 | F53: GESTIONADOS
A54: 3109932021 | B54: SUBDIRECCION DE ADMINISTRACION INMOBILIARIA Y DE ESPACIO PUBLICO | C54: TELEFONO | D54: DERECHO DE PETICION DE INTERES GENERAL | E54: 25 | F54: GESTIONADOS
A55: 3110772021 | B55: SUBDIRECCION DE REGISTRO INMOBILIARIO | C55: WEB | D55: DERECHO DE PETICION DE INTERES GENERAL | E55: 27 | F55: GESTIONADOS
A56: 3115712021 | B56: SUBDIRECCION DE ADMINISTRACION INMOBILIARIA Y DE ESPACIO PUBLICO | C56: WEB | D56: DERECHO DE PETICION DE INTERES GENERAL | E56: 25 | F56: GESTIONADOS
A57: 3117872021 | B57: SUBDIRECCION DE ADMINISTRACION INMOBILIARIA Y DE ESPACIO PUBLICO | C57: ESCRITO | D57: DERECHO DE PETICION DE INTERES PARTICULAR | E57: 28 | F57: GESTIONADOS
A58: 3118262021 | B58: SUBDIRECCION DE ADMINISTRACION INMOBILIARIA Y DE ESPACIO PUBLICO | C58: WEB | D58: DERECHO DE PETICION DE INTERES GENERAL | E58: 25 | F58: GESTIONADOS
A59: 3118442021 | B59: SUBDIRECCION DE ADMINISTRACION INMOBILIARIA Y DE ESPACIO PUBLICO | C59: ESCRITO | D59: DERECHO DE PETICION DE INTERES PARTICULAR | E59: 25 | F59: GESTIONADOS
A60: 3119852021 | B60: SUBDIRECCION DE ADMINISTRACION INMOBILIARIA Y DE ESPACIO PUBLICO | C60: WEB | D60: RECLAMO | E60: 25 | F60: GESTIONADOS
A61: 3122132021 | B61: SUBDIRECCION DE ADMINISTRACION INMOBILIARIA Y DE ESPACIO PUBLICO | C61: WEB | D61: DERECHO DE PETICION DE INTERES GENERAL | E61: 25 | F61: GESTIONADOS
A62: 3125862021 | B62: SUBDIRECCION DE REGISTRO INMOBILIARIO | C62: ESCRITO | D62: DERECHO DE PETICION DE INTERES PARTICULAR | E62: 22 | F62: GESTIONADOS
A63: 3125872021 | B63: SUBDIRECCION DE ADMINISTRACION INMOBILIARIA Y DE ESPACIO PUBLICO | C63: ESCRITO | D63: DERECHO DE PETICION DE INTERES PARTICULAR | E63: 25 | F63: GESTIONADOS
A64: 3125892021 | B64: SUBDIRECCION DE ADMINISTRACION INMOBILIARIA Y DE ESPACIO PUBLICO | C64: ESCRITO | D64: DERECHO DE PETICION DE INTERES GENERAL | E64: 25 | F64: GESTIONADOS
A65: 3125932021 | B65: SUBDIRECCION DE REGISTRO INMOBILIARIO | C65: ESCRITO | D65: DERECHO DE PETICION DE INTERES PARTICULAR | E65: 25 | F65: GESTIONADOS
A66: 3126022021 | B66: SUBDIRECCION DE REGISTRO INMOBILIARIO | C66: ESCRITO | D66: DERECHO DE PETICION DE INTERES PARTICULAR | E66: 26 | F66: GESTIONADOS
A67: 3126202021 | B67: SUBDIRECCION DE ADMINISTRACION INMOBILIARIA Y DE ESPACIO PUBLICO | C67: ESCRITO | D67: DERECHO DE PETICION DE INTERES PARTICULAR | E67: 25 | F67: GESTIONADOS
A68: 3126302021 | B68: AREA DE ATENCION A LA CIUDADANIA | C68: ESCRITO | D68: DERECHO DE PETICION DE INTERES PARTICULAR | E68: 41 | F68: GESTIONADOS
A69: 3126302021 | B69: SUBDIRECCION DE ADMINISTRACION INMOBILIARIA Y DE ESPACIO PUBLICO | C69: ESCRITO | D69: DERECHO DE PETICION DE INTERES PARTICULAR | E69: 25 | F69: GESTIONADOS
A70: 3126852021 | B70: AREA DE ATENCION A LA CIUDADANIA | C70: ESCRITO | D70: DERECHO DE PETICION DE INTERES GENERAL | E70: 25 | F70: GESTIONADOS
A71: 3126852021 | B71: SUBDIRECCION DE ADMINISTRACION INMOBILIARIA Y DE ESPACIO PUBLICO | C71: ESCRITO | D71: DERECHO DE PETICION DE INTERES GENERAL | E71: 25 | F71: GESTIONADOS
A72: 3128382021 | B72: SUBDIRECCION DE ADMINISTRACION INMOBILIARIA Y DE ESPACIO PUBLICO | C72: WEB | D72: DERECHO DE PETICION DE INTERES GENERAL | E72: 25 | F72: GESTIONADOS
A73: 3129282021 | B73: SUBDIRECCION DE ADMINISTRACION INMOBILIARIA Y DE ESPACIO PUBLICO | C73: ESCRITO | D73: DERECHO DE PETICION DE INTERES PARTICULAR | E73: 25 | F73: GESTIONADOS
A74: 3129862021 | B74: SUBDIRECCION DE ADMINISTRACION INMOBILIARIA Y DE ESPACIO PUBLICO | C74: ESCRITO | D74: DERECHO DE PETICION DE INTERES PARTICULAR | E74: 25 | F74: GESTIONADOS
A75: 3129992021 | B75: SUBDIRECCION DE ADMINISTRACION INMOBILIARIA Y DE ESPACIO PUBLICO | C75: WEB | D75: QUEJA | E75: 25 | F75: GESTIONADOS
A76: 3130412021 | B76: SUBDIRECCION DE ADMINISTRACION INMOBILIARIA Y DE ESPACIO PUBLICO | C76: ESCRITO | D76: DERECHO DE PETICION DE INTERES PARTICULAR | E76: 25 | F76: GESTIONADOS
A77: 3130602021 | B77: SUBDIRECCION DE ADMINISTRACION INMOBILIARIA Y DE ESPACIO PUBLICO | C77: E-MAIL | D77: DERECHO DE PETICION DE INTERES PARTICULAR | E77: 25 | F77: GESTIONADOS
A78: 3131602021 | B78: SUBDIRECCION DE ADMINISTRACION INMOBILIARIA Y DE ESPACIO PUBLICO | C78: ESCRITO | D78: DERECHO DE PETICION DE INTERES PARTICULAR | E78: 25 | F78: GESTIONADOS
A79: 3132302021 | B79: SUBDIRECCION DE ADMINISTRACION INMOBILIARIA Y DE ESPACIO PUBLICO | C79: ESCRITO | D79: DERECHO DE PETICION DE INTERES PARTICULAR | E79: 25 | F79: GESTIONADOS
A80: 3132602021 | B80: SUBDIRECCION DE ADMINISTRACION INMOBILIARIA Y DE ESPACIO PUBLICO | C80: E-MAIL | D80: DERECHO DE PETICION DE INTERES GENERAL | E80: 25 | F80: GESTIONADOS
A81: 3133822021 | B81: SUBDIRECCION DE ADMINISTRACION INMOBILIARIA Y DE ESPACIO PUBLICO | C81: WEB | D81: DERECHO DE PETICION DE INTERES PARTICULAR | E81: 25 | F81: GESTIONADOS
A82: 3149112021 | B82: SUBDIRECCION DE ADMINISTRACION INMOBILIARIA Y DE ESPACIO PUBLICO | C82: TELEFONO | D82: DERECHO DE PETICION DE INTERES PARTICULAR | E82: 25 | F82: GESTIONADOS
A83: 3149492021 | B83: SUBDIRECCION DE ADMINISTRACION INMOBILIARIA Y DE ESPACIO PUBLICO | C83: WEB | D83: QUEJA | E83: 26 | F83: GESTIONADOS
A84: 3150272021 | B84: SUBDIRECCION DE ADMINISTRACION INMOBILIARIA Y DE ESPACIO PUBLICO | C84: WEB | D84: DERECHO DE PETICION DE INTERES GENERAL | E84: 26 | F84: GESTIONADOS
A85: 3150282021 | B85: AREA DE ATENCION A LA CIUDADANIA | C85: WEB | D85: DERECHO DE PETICION DE INTERES GENERAL | E85: 28 | F85: GESTIONADOS
A86: 3150282021 | B86: SUBDIRECCION DE ADMINISTRACION INMOBILIARIA Y DE ESPACIO PUBLICO | C86: WEB | D86: DERECHO DE PETICION DE INTERES GENERAL | E86: 28 | F86: GESTIONADOS
A87: 3152802021 | B87: SUBDIRECCION DE ADMINISTRACION INMOBILIARIA Y DE ESPACIO PUBLICO | C87: WEB | D87: DERECHO DE PETICION DE INTERES GENERAL | E87: 26 | F87: GESTIONADOS
A88: 3156922021 | B88: AREA DE ATENCION A LA CIUDADANIA | C88: WEB | D88: QUEJA | E88: 23 | F88: GESTIONADOS
A89: 3157052021 | B89: AREA DE ATENCION A LA CIUDADANIA | C89: WEB | D89: DERECHO DE PETICION DE INTERES PARTICULAR | E89: 1 | F89: GESTIONADOS
A90: 3157052021 | B90: SUBDIRECCION DE ADMINISTRACION INMOBILIARIA Y DE ESPACIO PUBLICO | C90: WEB | D90: DERECHO DE PETICION DE INTERES PARTICULAR | E90: 11 | F90: PENDIENTE
A91: 3157092021 | B91: SUBDIRECCION DE ADMINISTRACION INMOBILIARIA Y DE ESPACIO PUBLICO | C91: ESCRITO | D91: DERECHO DE PETICION DE INTERES PARTICULAR | E91: 25 | F91: GESTIONADOS
A92: 3157102021 | B92: SUBDIRECCION DE ADMINISTRACION INMOBILIARIA Y DE ESPACIO PUBLICO | C92: ESCRITO | D92: DERECHO DE PETICION DE INTERES PARTICULAR | E92: 25 | F92: GESTIONADOS
A93: 3157112021 | B93: SUBDIRECCION DE ADMINISTRACION INMOBILIARIA Y DE ESPACIO PUBLICO | C93: ESCRITO | D93: DERECHO DE PETICION DE INTERES PARTICULAR | E93: 25 | F93: GESTIONADOS
A94: 3157122021 | B94: SUBDIRECCION DE REGISTRO INMOBILIARIO | C94: ESCRITO | D94: DERECHO DE PETICION DE INTERES PARTICULAR | E94: 25 | F94: GESTIONADOS
A95: 3157132021 | B95: SUBDIRECCION DE ADMINISTRACION INMOBILIARIA Y DE ESPACIO PUBLICO | C95: ESCRITO | D95: DERECHO DE PETICION DE INTERES PARTICULAR | E95: 23 | F95: GESTIONADOS
A96: 3157152021 | B96: SUBDIRECCION DE ADMINISTRACION INMOBILIARIA Y DE ESPACIO PUBLICO | C96: ESCRITO | D96: DERECHO DE PETICION DE INTERES PARTICULAR | E96: 25 | F96: GESTIONADOS
A97: 3157182021 | B97: SUBDIRECCION DE ADMINISTRACION INMOBILIARIA Y DE ESPACIO PUBLICO | C97: ESCRITO | D97: DERECHO DE PETICION DE INTERES PARTICULAR | E97: 25 | F97: GESTIONADOS
A98: 3160972021 | B98: SUBDIRECCION DE ADMINISTRACION INMOBILIARIA Y DE ESPACIO PUBLICO | C98: WEB | D98: QUEJA | E98: 25 | F98: GESTIONADOS
A99: 3162702021 | B99: SUBDIRECCION DE ADMINISTRACION INMOBILIARIA Y DE ESPACIO PUBLICO | C99: WEB | D99: DERECHO DE PETICION DE INTERES GENERAL | E99: 25 | F99: GESTIONADOS
A100: 3163562021 | B100: SUBDIRECCION DE ADMINISTRACION INMOBILIARIA Y DE ESPACIO PUBLICO | C100: WEB | D100: QUEJA | E100: 25 | F100: GESTIONADOS
A101: 3167002021 | B101: SUBDIRECCION DE ADMINISTRACION INMOBILIARIA Y DE ESPACIO PUBLICO | C101: E-MAIL | D101: DERECHO DE PETICION DE INTERES PARTICULAR | E101: 28 | F101: GESTIONADOS
A102: 3167252021 | B102: SUBDIRECCION DE ADMINISTRACION INMOBILIARIA Y DE ESPACIO PUBLICO | C102: ESCRITO | D102: DERECHO DE PETICION DE INTERES PARTICULAR | E102: 24 | F102: GESTIONADOS
A103: 3171232021 | B103: SUBDIRECCION DE ADMINISTRACION INMOBILIARIA Y DE ESPACIO PUBLICO | C103: WEB | D103: QUEJA | E103: 25 | F103: GESTIONADOS
A104: 3171392021 | B104: SUBDIRECCION DE ADMINISTRACION INMOBILIARIA Y DE ESPACIO PUBLICO | C104: WEB | D104: DERECHO DE PETICION DE INTERES GENERAL | E104: 25 | F104: GESTIONADOS
A105: 3175732021 | B105: SUBDIRECCION DE ADMINISTRACION INMOBILIARIA Y DE ESPACIO PUBLICO | C105: TELEFONO | D105: DERECHO DE PETICION DE INTERES GENERAL | E105: 25 | F105: GESTIONADOS
A106: 3176722021 | B106: AREA DE ATENCION A LA CIUDADANIA | C106: WEB | D106: SOLICITUD DE ACCESO A LA INFORMACION | E106: 13 | F106: GESTIONADOS
A107: 3178682021 | B107: SUBDIRECCION DE ADMINISTRACION INMOBILIARIA Y DE ESPACIO PUBLICO | C107: WEB | D107: DERECHO DE PETICION DE INTERES GENERAL | E107: 27 | F107: GESTIONADOS
A108: 3179292021 | B108: SUBDIRECCION DE ADMINISTRACION INMOBILIARIA Y DE ESPACIO PUBLICO | C108: WEB | D108: QUEJA | E108: 27 | F108: GESTIONADOS
A109: 3179942021 | B109: SUBDIRECCION DE ADMINISTRACION INMOBILIARIA Y DE ESPACIO PUBLICO | C109: WEB | D109: DERECHO DE PETICION DE INTERES PARTICULAR | E109: 27 | F109: GESTIONADOS
A110: 3182672021 | B110: SUBDIRECCION DE ADMINISTRACION INMOBILIARIA Y DE ESPACIO PUBLICO | C110: WEB | D110: DERECHO DE PETICION DE INTERES GENERAL | E110: 27 | F110: GESTIONADOS
A111: 3184432021 | B111: SUBDIRECCION DE ADMINISTRACION INMOBILIARIA Y DE ESPACIO PUBLICO | C111: WEB | D111: DERECHO DE PETICION DE INTERES GENERAL | E111: 27 | F111: GESTIONADOS
A112: 3185162021 | B112: SUBDIRECCION DE ADMINISTRACION INMOBILIARIA Y DE ESPACIO PUBLICO | C112: ESCRITO | D112: DERECHO DE PETICION DE INTERES GENERAL | E112: 23 | F112: GESTIONADOS
A113: 3186402021 | B113: SUBDIRECCION DE ADMINISTRACION INMOBILIARIA Y DE ESPACIO PUBLICO | C113: WEB | D113: QUEJA | E113: 24 | F113: GESTIONADOS
A114: 3186522021 | B114: SUBDIRECCION DE ADMINISTRACION INMOBILIARIA Y DE ESPACIO PUBLICO | C114: ESCRITO | D114: DERECHO DE PETICION DE INTERES PARTICULAR | E114: 27 | F114: GESTIONADOS
A115: 3186842021 | B115: AREA DE ATENCION A LA CIUDADANIA | C115: WEB | D115: RECLAMO | E115: 22 | F115: GESTIONADOS
A116: 3187682021 | B116: SUBDIRECCION DE ADMINISTRACION INMOBILIARIA Y DE ESPACIO PUBLICO | C116: ESCRITO | D116: DERECHO DE PETICION DE INTERES PARTICULAR | E116: 28 | F116: GESTIONADOS
A117: 3187822021 | B117: AREA DE ATENCION A LA CIUDADANIA | C117: ESCRITO | D117: DERECHO DE PETICION DE INTERES PARTICULAR | E117: 25 | F117: GESTIONADOS
A118: 3187822021 | B118: SUBDIRECCION DE ADMINISTRACION INMOBILIARIA Y DE ESPACIO PUBLICO | C118: ESCRITO | D118: DERECHO DE PETICION DE INTERES PARTICULAR | E118: 25 | F118: GESTIONADOS
A119: 3187852021 | B119: SUBDIRECCION DE ADMINISTRACION INMOBILIARIA Y DE ESPACIO PUBLICO | C119: ESCRITO | D119: DERECHO DE PETICION DE INTERES PARTICULAR | E119: 24 | F119: GESTIONADOS
A120: 3187912021 | B120: SUBDIRECCION DE ADMINISTRACION INMOBILIARIA Y DE ESPACIO PUBLICO | C120: ESCRITO | D120: DERECHO DE PETICION DE INTERES PARTICULAR | E120: 23 | F120: GESTIONADOS
A121: 3188312021 | B121: SUBDIRECCION DE ADMINISTRACION INMOBILIARIA Y DE ESPACIO PUBLICO | C121: ESCRITO | D121: DERECHO DE PETICION DE INTERES GENERAL | E121: 23 | F121: GESTIONADOS
A122: 3190482021 | B122: SUBDIRECCION DE REGISTRO INMOBILIARIO | C122: WEB | D122: DERECHO DE PETICION DE INTERES PARTICULAR | E122: 26 | F122: GESTIONADOS
A123: 3191152021 | B123: SUBDIRECCION DE ADMINISTRACION INMOBILIARIA Y DE ESPACIO PUBLICO | C123: ESCRITO | D123: DERECHO DE PETICION DE INTERES GENERAL | E123: 27 | F123: GESTIONADOS
A124: 3191382021 | B124: SUBDIRECCION DE ADMINISTRACION INMOBILIARIA Y DE ESPACIO PUBLICO | C124: ESCRITO | D124: DERECHO DE PETICION DE INTERES GENERAL | E124: 23 | F124: GESTIONADOS
A125: 3191582021 | B125: SUBDIRECCION DE ADMINISTRACION INMOBILIARIA Y DE ESPACIO PUBLICO | C125: ESCRITO | D125: DERECHO DE PETICION DE INTERES PARTICULAR | E125: 24 | F125: GESTIONADOS
A126: 3192772021 | B126: AREA DE ATENCION A LA CIUDADANIA | C126: E-MAIL | D126: DERECHO DE PETICION DE INTERES PARTICULAR | E126: 1 | F126: GESTIONADOS
A127: 3194262021 | B127: SUBDIRECCION DE ADMINISTRACION INMOBILIARIA Y DE ESPACIO PUBLICO | C127: E-MAIL | D127: DERECHO DE PETICION DE INTERES PARTICULAR | E127: 24 | F127: GESTIONADOS
A128: 3194302021 | B128: SUBDIRECCION DE ADMINISTRACION INMOBILIARIA Y DE ESPACIO PUBLICO | C128: E-MAIL | D128: DERECHO DE PETICION DE INTERES PARTICULAR | E128: 24 | F128: GESTIONADOS
A129: 3200452021 | B129: SUBDIRECCION DE ADMINISTRACION INMOBILIARIA Y DE ESPACIO PUBLICO | C129: ESCRITO | D129: DERECHO DE PETICION DE INTERES PARTICULAR | E129: 26 | F129: GESTIONADOS
A130: 3200582021 | B130: SUBDIRECCION DE ADMINISTRACION INMOBILIARIA Y DE ESPACIO PUBLICO | C130: ESCRITO | D130: DERECHO DE PETICION DE INTERES PARTICULAR | E130: 26 | F130: GESTIONADOS
A131: 3200702021 | B131: SUBDIRECCION DE ADMINISTRACION INMOBILIARIA Y DE ESPACIO PUBLICO | C131: ESCRITO | D131: DERECHO DE PETICION DE INTERES PARTICULAR | E131: 26 | F131: GESTIONADOS
A132: 3200852021 | B132: SUBDIRECCION DE ADMINISTRACION INMOBILIARIA Y DE ESPACIO PUBLICO | C132: ESCRITO | D132: CONSULTA | E132: 32 | F132: GESTIONADOS
A133: 3202812021 | B133: SUBDIRECCION DE ADMINISTRACION INMOBILIARIA Y DE ESPACIO PUBLICO | C133: TELEFONO | D133: DERECHO DE PETICION DE INTERES GENERAL | E133: 23 | F133: GESTIONADOS
A134: 3204982021 | B134: SUBDIRECCION DE ADMINISTRACION INMOBILIARIA Y DE ESPACIO PUBLICO | C134: ESCRITO | D134: DERECHO DE PETICION DE INTERES PARTICULAR | E134: 30 | F134: GESTIONADOS
A135: 3205082021 | B135: SUBDIRECCION DE ADMINISTRACION INMOBILIARIA Y DE ESPACIO PUBLICO | C135: ESCRITO | D135: DERECHO DE PETICION DE INTERES PARTICULAR | E135: 26 | F135: GESTIONADOS
A136: 3205952021 | B136: SUBDIRECCION DE ADMINISTRACION INMOBILIARIA Y DE ESPACIO PUBLICO | C136: WEB | D136: DERECHO DE PETICION DE INTERES PARTICULAR | E136: 26 | F136: GESTIONADOS
A137: 3207102021 | B137: SUBDIRECCION DE REGISTRO INMOBILIARIO | C137: WEB | D137: DERECHO DE PETICION DE INTERES GENERAL | E137: 25 | F137: GESTIONADOS
A138: 3208472021 | B138: SUBDIRECCION DE ADMINISTRACION INMOBILIARIA Y DE ESPACIO PUBLICO | C138: E-MAIL | D138: DERECHO DE PETICION DE INTERES GENERAL | E138: 26 | F138: GESTIONADOS
A139: 3210172021 | B139: SUBDIRECCION DE ADMINISTRACION INMOBILIARIA Y DE ESPACIO PUBLICO | C139: WEB | D139: DERECHO DE PETICION DE INTERES GENERAL | E139: 26 | F139: GESTIONADOS
A140: 3217932021 | B140: AREA DE ATENCION A LA CIUDADANIA | C140: WEB | D140: DERECHO DE PETICION DE INTERES PARTICULAR | E140: 20 | F140: GESTIONADOS
A141: 3218112021 | B141: SUBDIRECCION DE REGISTRO INMOBILIARIO | C141: ESCRITO | D141: DERECHO DE PETICION DE INTERES GENERAL | E141: 8 | F141: GESTIONADOS
A142: 3218592021 | B142: SUBDIRECCION DE ADMINISTRACION INMOBILIARIA Y DE ESPACIO PUBLICO | C142: ESCRITO | D142: DERECHO DE PETICION DE INTERES PARTICULAR | E142: 26 | F142: GESTIONADOS
A143: 3218772021 | B143: SUBDIRECCION DE ADMINISTRACION INMOBILIARIA Y DE ESPACIO PUBLICO | C143: ESCRITO | D143: DERECHO DE PETICION DE INTERES PARTICULAR | E143: 26 | F143: GESTIONADOS
A144: 3218912021 | B144: SUBDIRECCION DE ADMINISTRACION INMOBILIARIA Y DE ESPACIO PUBLICO | C144: ESCRITO | D144: DERECHO DE PETICION DE INTERES PARTICULAR | E144: 29 | F144: GESTIONADOS
A145: 3220072021 | B145: SUBDIRECCION DE ADMINISTRACION INMOBILIARIA Y DE ESPACIO PUBLICO | C145: WEB | D145: DERECHO DE PETICION DE INTERES PARTICULAR | E145: 26 | F145: GESTIONADOS
A146: 3222362021 | B146: SUBDIRECCION DE ADMINISTRACION INMOBILIARIA Y DE ESPACIO PUBLICO | C146: WEB | D146: DERECHO DE PETICION DE INTERES PARTICULAR | E146: 26 | F146: GESTIONADOS
A147: 3222362021 | B147: SUBDIRECCION DE REGISTRO INMOBILIARIO | C147: WEB | D147: DERECHO DE PETICION DE INTERES PARTICULAR | E147: 27 | F147: GESTIONADOS
A148: 3222432021 | B148: SUBDIRECCION DE REGISTRO INMOBILIARIO | C148: WEB | D148: DERECHO DE PETICION DE INTERES PARTICULAR | E148: 21 | F148: GESTIONADOS
A149: 3222622021 | B149: SUBDIRECCION DE ADMINISTRACION INMOBILIARIA Y DE ESPACIO PUBLICO | C149: ESCRITO | D149: DERECHO DE PETICION DE INTERES PARTICULAR | E149: 26 | F149: GESTIONADOS
A150: 3222812021 | B150: SUBDIRECCION DE ADMINISTRACION INMOBILIARIA Y DE ESPACIO PUBLICO | C150: E-MAIL | D150: DERECHO DE PETICION DE INTERES PARTICULAR | E150: 26 | F150: GESTIONADOS
A151: 3223612021 | B151: SUBDIRECCION DE ADMINISTRACION INMOBILIARIA Y DE ESPACIO PUBLICO | C151: ESCRITO | D151: DERECHO DE PETICION DE INTERES PARTICULAR | E151: 26 | F151: GESTIONADOS
A152: 3224062021 | B152: SUBDIRECCION DE ADMINISTRACION INMOBILIARIA Y DE ESPACIO PUBLICO | C152: ESCRITO | D152: DERECHO DE PETICION DE INTERES PARTICULAR | E152: 26 | F152: GESTIONADOS
A153: 3224132021 | B153: AREA DE ATENCION A LA CIUDADANIA | C153: WEB | D153: CONSULTA | E153: 20 | F153: GESTIONADOS
A154: 3224952021 | B154: SUBDIRECCION DE ADMINISTRACION INMOBILIARIA Y DE ESPACIO PUBLICO | C154: WEB | D154: DERECHO DE PETICION DE INTERES PARTICULAR | E154: 26 | F154: GESTIONADOS
A155: 3225682021 | B155: SUBDIRECCION DE REGISTRO INMOBILIARIO | C155: ESCRITO | D155: DERECHO DE PETICION DE INTERES PARTICULAR | E155: 29 | F155: GESTIONADOS
A156: 3228272021 | B156: DESPACHO | C156: WEB | D156: FELICITACION | E156: 18 | F156: GESTIONADOS
A157: 3229712021 | B157: SUBDIRECCION DE ADMINISTRACION INMOBILIARIA Y DE ESPACIO PUBLICO | C157: WEB | D157: DERECHO DE PETICION DE INTERES PARTICULAR | E157: 27 | F157: GESTIONADOS
A158: 3230872021 | B158: SUBDIRECCION DE REGISTRO INMOBILIARIO | C158: ESCRITO | D158: DERECHO DE PETICION DE INTERES PARTICULAR | E158: 16 | F158: GESTIONADOS
A159: 3230892021 | B159: SUBDIRECCION DE ADMINISTRACION INMOBILIARIA Y DE ESPACIO PUBLICO | C159: ESCRITO | D159: DERECHO DE PETICION DE INTERES PARTICULAR | E159: 27 | F159: GESTIONADOS
A160: 3231132021 | B160: SUBDIRECCION DE ADMINISTRACION INMOBILIARIA Y DE ESPACIO PUBLICO | C160: ESCRITO | D160: DERECHO DE PETICION DE INTERES GENERAL | E160: 27 | F160: GESTIONADOS
A161: 3231642021 | B161: SUBDIRECCION DE ADMINISTRACION INMOBILIARIA Y DE ESPACIO PUBLICO | C161: ESCRITO | D161: DERECHO DE PETICION DE INTERES PARTICULAR | E161: 27 | F161: GESTIONADOS
A162: 3234622021 | B162: SUBDIRECCION DE ADMINISTRACION INMOBILIARIA Y DE ESPACIO PUBLICO | C162: TELEFONO | D162: DERECHO DE PETICION DE INTERES GENERAL | E162: 27 | F162: GESTIONADOS
A163: 3243162021 | B163: SUBDIRECCION DE ADMINISTRACION INMOBILIARIA Y DE ESPACIO PUBLICO | C163: WEB | D163: DERECHO DE PETICION DE INTERES PARTICULAR | E163: 27 | F163: GESTIONADOS
A164: 3245782021 | B164: SUBDIRECCION DE REGISTRO INMOBILIARIO | C164: WEB | D164: DERECHO DE PETICION DE INTERES PARTICULAR | E164: 22 | F164: GESTIONADOS
A165: 3247182021 | B165: AREA DE ATENCION A LA CIUDADANIA | C165: E-MAIL | D165: DERECHO DE PETICION DE INTERES PARTICULAR | E165: 17 | F165: PENDIENTE
A166: 3249962021 | B166: SUBDIRECCION DE REGISTRO INMOBILIARIO | C166: ESCRITO | D166: DERECHO DE PETICION DE INTERES PARTICULAR | E166: 24 | F166: GESTIONADOS
A167: 3250002021 | B167: SUBDIRECCION DE REGISTRO INMOBILIARIO | C167: ESCRITO | D167: DERECHO DE PETICION DE INTERES PARTICULAR | E167: 22 | F167: GESTIONADOS
A168: 3250092021 | B168: SUBDIRECCION DE ADMINISTRACION INMOBILIARIA Y DE ESPACIO PUBLICO | C168: ESCRITO | D168: DERECHO DE PETICION DE INTERES PARTICULAR | E168: 27 | F168: GESTIONADOS
A169: 3250162021 | B169: SUBDIRECCION DE ADMINISTRACION INMOBILIARIA Y DE ESPACIO PUBLICO | C169: WEB | D169: DERECHO DE PETICION DE INTERES GENERAL | E169: 27 | F169: GESTIONADOS
A170: 3250182021 | B170: SUBDIRECCION DE ADMINISTRACION INMOBILIARIA Y DE ESPACIO PUBLICO | C170: ESCRITO | D170: DERECHO DE PETICION DE INTERES PARTICULAR | E170: 27 | F170: GESTIONADOS
A171: 3251122021 | B171: SUBDIRECCION DE ADMINISTRACION INMOBILIARIA Y DE ESPACIO PUBLICO | C171: ESCRITO | D171: DERECHO DE PETICION DE INTERES PARTICULAR | E171: 27 | F171: GESTIONADOS
A172: 3251132021 | B172: AREA DE ATENCION A LA CIUDADANIA | C172: WEB | D172: DERECHO DE PETICION DE INTERES GENERAL | E172: 22 | F172: GESTIONADOS
A173: 3251722021 | B173: SUBDIRECCION DE ADMINISTRACION INMOBILIARIA Y DE ESPACIO PUBLICO | C173: E-MAIL | D173: DERECHO DE PETICION DE INTERES PARTICULAR | E173: 27 | F173: GESTIONADOS
A174: 3252042021 | B174: SUBDIRECCION DE REGISTRO INMOBILIARIO | C174: ESCRITO | D174: DERECHO DE PETICION DE INTERES PARTICULAR | E174: 16 | F174: GESTIONADOS
A175: 3252632021 | B175: SUBDIRECCION DE REGISTRO INMOBILIARIO | C175: ESCRITO | D175: DERECHO DE PETICION DE INTERES PARTICULAR | E175: 25 | F175: GESTIONADOS
A176: 3252852021 | B176: SUBDIRECCION DE ADMINISTRACION INMOBILIARIA Y DE ESPACIO PUBLICO | C176: ESCRITO | D176: DERECHO DE PETICION DE INTERES PARTICULAR | E176: 27 | F176: GESTIONADOS
A177: 3253582021 | B177: SUBDIRECCION DE ADMINISTRACION INMOBILIARIA Y DE ESPACIO PUBLICO | C177: ESCRITO | D177: DERECHO DE PETICION DE INTERES PARTICULAR | E177: 27 | F177: GESTIONADOS
A178: 3253822021 | B178: SUBDIRECCION DE REGISTRO INMOBILIARIO | C178: ESCRITO | D178: DERECHO DE PETICION DE INTERES PARTICULAR | E178: 16 | F178: GESTIONADOS
A179: 3258612021 | B179: SUBDIRECCION DE ADMINISTRACION INMOBILIARIA Y DE ESPACIO PUBLICO | C179: WEB | D179: DERECHO DE PETICION DE INTERES PARTICULAR | E179: 27 | F179: GESTIONADOS
A180: 3260632021 | B180: SUBDIRECCION DE ADMINISTRACION INMOBILIARIA Y DE ESPACIO PUBLICO | C180: WEB | D180: DERECHO DE PETICION DE INTERES GENERAL | E180: 27 | F180: GESTIONADOS
A181: 3261342021 | B181: SUBDIRECCION DE ADMINISTRACION INMOBILIARIA Y DE ESPACIO PUBLICO | C181: WEB | D181: DERECHO DE PETICION DE INTERES PARTICULAR | E181: 27 | F181: GESTIONADOS
A182: 3263632021 | B182: SUBDIRECCION DE ADMINISTRACION INMOBILIARIA Y DE ESPACIO PUBLICO | C182: WEB | D182: QUEJA | E182: 27 | F182: GESTIONADOS
A183: 3264652021 | B183: SUBDIRECCION DE ADMINISTRACION INMOBILIARIA Y DE ESPACIO PUBLICO | C183: WEB | D183: DERECHO DE PETICION DE INTERES PARTICULAR | E183: 27 | F183: GESTIONADOS
A184: 3264892021 | B184: AREA DE ATENCION A LA CIUDADANIA | C184: WEB | D184: DERECHO DE PETICION DE INTERES PARTICULAR | E184: 29 | F184: GESTIONADOS
A185: 3264892021 | B185: SUBDIRECCION DE ADMINISTRACION INMOBILIARIA Y DE ESPACIO PUBLICO | C185: WEB | D185: DERECHO DE PETICION DE INTERES PARTICULAR | E185: 27 | F185: GESTIONADOS
A186: 3272782021 | B186: SUBDIRECCION DE ADMINISTRACION INMOBILIARIA Y DE ESPACIO PUBLICO | C186: ESCRITO | D186: DERECHO DE PETICION DE INTERES PARTICULAR | E186: 27 | F186: GESTIONADOS
A187: 3272982021 | B187: SUBDIRECCION DE REGISTRO INMOBILIARIO | C187: ESCRITO | D187: DERECHO DE PETICION DE INTERES PARTICULAR | E187: 16 | F187: GESTIONADOS
A188: 3273412021 | B188: SUBDIRECCION DE ADMINISTRACION INMOBILIARIA Y DE ESPACIO PUBLICO | C188: ESCRITO | D188: DERECHO DE PETICION DE INTERES PARTICULAR | E188: 27 | F188: GESTIONADOS
A189: 3274212021 | B189: SUBDIRECCION DE REGISTRO INMOBILIARIO | C189: ESCRITO | D189: DERECHO DE PETICION DE INTERES PARTICULAR | E189: 16 | F189: GESTIONADOS
A190: 3274432021 | B190: AREA DE ATENCION A LA CIUDADANIA | C190: E-MAIL | D190: DERECHO DE PETICION DE INTERES GENERAL | E190: 1 | F190: GESTIONADOS
A191: 3274432021 | B191: OFICINA ASESORA JURIDICA | C191: E-MAIL | D191: DERECHO DE PETICION DE INTERES GENERAL | E191: 1 | F191: GESTIONADOS
A192: 3274432021 | B192: SUBDIRECCION DE ADMINISTRACION INMOBILIARIA Y DE ESPACIO PUBLICO | C192: E-MAIL | D192: DERECHO DE PETICION DE INTERES GENERAL | E192: 18 | F192: PENDIENTE
A193: 3276682021 | B193: SUBDIRECCION DE REGISTRO INMOBILIARIO | C193: E-MAIL | D193: RECLAMO | E193: 22 | F193: GESTIONADOS
A194: 3276802021 | B194: AREA DE ATENCION A LA CIUDADANIA | C194: E-MAIL | D194: DERECHO DE PETICION DE INTERES PARTICULAR | E194: 1 | F194: GESTIONADOS
A195: 3276802021 | B195: SUBDIRECCION DE REGISTRO INMOBILIARIO | C195: E-MAIL | D195: DERECHO DE PETICION DE INTERES PARTICULAR | E195: 18 | F195: PENDIENTE
A196: 3277272021 | B196: SUBDIRECCION DE ADMINISTRACION INMOBILIARIA Y DE ESPACIO PUBLICO | C196: WEB | D196: DERECHO DE PETICION DE INTERES GENERAL | E196: 27 | F196: GESTIONADOS
A197: 3281132021 | B197: AREA DE ATENCION A LA CIUDADANIA | C197: ESCRITO | D197: DERECHO DE PETICION DE INTERES PARTICULAR | E197: 28 | F197: GESTIONADOS
A198: 3281132021 | B198: SUBDIRECCION DE REGISTRO INMOBILIARIO | C198: ESCRITO | D198: DERECHO DE PETICION DE INTERES PARTICULAR | E198: 28 | F198: GESTIONADOS
A199: 3281712021 | B199: SUBDIRECCION DE ADMINISTRACION INMOBILIARIA Y DE ESPACIO PUBLICO | C199: ESCRITO | D199: DERECHO DE PETICION DE INTERES PARTICULAR | E199: 27 | F199: GESTIONADOS
A200: 3281762021 | B200: SUBDIRECCION DE REGISTRO INMOBILIARIO | C200: ESCRITO | D200: DERECHO DE PETICION DE INTERES PARTICULAR | E200: 23 | F200: GESTIONADOS
... 2044 more rows
